Cogmind - Beta 16 @@@ ROGUE MODE // 2025.11.17 @ 12:15:22 Player: C0-2MO Result: Heading to fleet! Performance ------------- Evolutions (9) 4500 Regions Visited (30) 6000 Robots Destroyed (139) 695 Value Destroyed (8546) 8546 Prototype IDs (369) 7380 Alien Tech Used (10) 2000 Bonus (55756) 55756 TOTAL SCORE: 84877 Bonus ------- Pacifist 470 High Alert Combat Kills 1825 Follower Combat Kills 661 Entered Garrisons 400 Used RIF Installer 1000 Network Hubs Disabled 400 Registered with UFD 300 Met Optimus in HQ 500 Found Hidden Lab 3000 Used Core Reset Matrix 3000 Scanned by Researcher 500 Destroyed Superfortress 15000 Met Optimus at Protoforge 1000 Recovered Sigix Corpse 2000 Destroyed MAIN.C Guards 500 Met MAIN.C 5000 Destroyed MAIN.C Shell 5000 Destroyed MAIN.C 10000 Met Architect 300 Destroyed A8 300 Destroyed A6 400 Destroyed A5 500 Destroyed A4 700 Win 3000 Cogmind --------- Core Integrity 167/1600 Matter 241/300 Energy 38/100 System Corruption 7% Temperature Cool (4) Movement Hovering (56) Location To Fleet Rendezvous Parts ------- > --- POWER (3) -------- (None) > --- PROPULSION (8) --- Concept Gyrokinetic System Concept Gyrokinetic System > --- UTILITY (10) ----- Concept Phasing Heat Sink Experimental Active Sensor Suite Experimental Armor Integrity Analyzer Concept Cloak Mesh Graphene Brace > --- WEAPON (4) ------- (None) > --- INVENTORY (5) ---- Concept NT7 Matterbank (750) Concept Cloak Mesh Concept Matter Streamer Sigix Corpse Peak State ------------ > --- POWER ------------ Micro Antimatter Reactor Hybrid Graviton Reactor Concept Zero-point Core > --- PROPULSION ------- Experimental Antigrav System Experimental Antigrav System Gravjet Array Gravjet Array Gravjet Array > --- UTILITY ---------- Concept Phasing Heat Sink Concept Antigrav Storage Unit Spectral Analyzer Experimental Active Sensor Suite Experimental Core Analyzer Concept Cloak Mesh Concept Cloak Mesh Experimental Force Field Concept Network Penetrator > --- WEAPON ----------- Concept Helical Railcannon Concept Helical Railcannon Concept Heavy Railcannon > --- INVENTORY -------- Experimental Antimatter Reactor Concept Zero-point Core Gravjet Array Gravjet Array Concept Gyrokinetic System Concept Gyrokinetic System Concept NT7 Matterbank Concept NT7 Matterbank Concept Weapon Articulator Experimental Kinecellerator Advanced Focal Shield Advanced Focal Shield Concept Beam Splitter Experimental EM Shield Experimental Force Field Concept Antimissile System Concept Matter Streamer Transdimensional Reconstructor Core Regenerator Concept Disintegration Ray Enhanced Hardcell Cannon Enhanced Hardcell Cannon Concept Helical Railcannon [Rating: 299] Favorites ----------- Power Concept Zero-point Core Engine Light Ion Engine Power Core Concept Zero-point Core Reactor Micro Antimatter Reactor Propulsion Improved Cesium-ion Thruster Hover Unit Gravjet Array Flight Unit Improved Cesium-ion Thruster Utility Spectral Analyzer Device Experimental Active Sensor Suite Storage Medium Storage Unit Processor Spectral Analyzer Hackware Advanced Hacking Suite Protection Light Regenerative Plating Weapon Concept Helical Railcannon Energy Gun Heavy Quantum Rifle Energy Cannon Concept Plasma Driver Ballistic Gun Battle Rifle Ballistic Cannon Concept Helical Railcannon Launcher Enhanced Gamma Bomb Array Special Weapon Improved Remote Datajack Impact Weapon Heavy Hammer Slashing Weapon Power Sword Piercing Weapon Spear Special Melee Weapon Advanced Datajack Build | -11 -10 -9 -8 -8 -8 -8 -6 -6 -6 -6 -6 -6 -5 -5 -5 -5 -5 -5 -5 -4 -4 -4 -3 -3 -2 -2 -2 -1 -1 -1 ------- Run | Yrd Mat Mat Mat Sto Rec Scr Fac Was Fac Gar Fac Gar Fac Was Fac Ext Cet Arc Hub Fac Arm Lab Res Tes Res Qua Frg Acc Com Ac0 Slots Evolved 18 | . . 2 2 . . . 4 . . . . . 2 . . . . . . 2 . . 2 . 2 . . 2 . . Power 2 | . . . . . . . 1 . . . . . . . . . . . . . . . . . 1 . . . . . Propulsion 6 | . . 2 . . . . 2 . . . . . . . . . . . . 1 . . 1 . . . . . . . Utility 8 | . . . . . . . 1 . . . . . 2 . . . . . . 1 . . 1 . 1 . . 2 . . Weapon 2 | . . . 2 . . . . . . . . . . . . . . . . . . . . . . . . . . . Parts Attached 251 | 2 . 2 10 6 2 6 18 . 8 1 5 1 6 3 3 9 1 3 3 15 3 4 8 9 8 5 83 5 13 9 Power 33 | . . . 1 3 . 2 3 . 1 . 2 . 3 . . 3 . 1 . 2 . . . 1 1 1 6 . 1 2 Engine 9 | . . . 1 3 . . 2 . . . . . 1 . . 1 . . . 1 . . . . . . . . . . Core 15 | . . . . . . 2 1 . 1 . 1 . 2 . . 2 . . . 1 . . . . 1 . 3 . . 1 Reactor 9 | . . . . . . . . . . . 1 . . . . . . 1 . . . . . 1 . 1 3 . 1 1 Propulsion 50 | . . . 6 1 . . 4 . 1 . 2 . . . 2 1 . . 1 2 . . 4 2 3 . 17 . . 4 Treads . | . . . . . . . . . . . . . . . . . . . . . . . . . . . . . . . Leg . | . . . . . . . . . . . . . . . . . . . . . . . . . . . . . . . Wheel . | . . . . . . . . . . . . . . . . . . . . . . . . . . . . . . . Hover 12 | . . . . . . . . . . . . . . . . . . . . . . . . . . . 8 . . 4 Flight 38 | . . . 6 1 . . 4 . 1 . 2 . . . 2 1 . . 1 2 . . 4 2 3 . 9 . . . Utility 102 | . . 1 2 1 2 1 7 . 3 1 . 1 2 . . 1 . 2 1 7 1 2 4 3 3 3 44 4 5 1 Device 61 | . . . . . . . 5 . 2 1 . . 2 . . . . 1 . 2 1 . 3 1 3 2 29 4 4 1 Storage 8 | . . . . . 1 1 . . . . . . . . . . . . . 1 . . 1 1 . . 3 . . . Processor 17 | . . 1 . . . . 2 . 1 . . . . . . 1 . . . 2 . . . . . . 9 . 1 . Hackware 10 | . . . 1 . 1 . . . . . . 1 . . . . . . 1 2 . 1 . 1 . 1 1 . . . Protection 6 | . . . 1 1 . . . . . . . . . . . . . 1 . . . 1 . . . . 2 . . . Artifact . | . . . . . . . . . . . . . . . . . . . . . . . . . . . . . . . Weapon 66 | 2 . 1 1 1 . 3 4 . 3 . 1 . 1 3 1 4 1 . 1 4 2 2 . 3 1 1 16 1 7 2 Energy Gun 3 | . . . . . . . . . . . . . . . . . . . . . . . . . . . 2 . 1 . Energy Cannon 7 | . . . . . . . . . 1 . . . . . 1 . . . . 1 . 1 . 1 . . 1 . 1 . Ballistic Gun 18 | 2 . . 1 . . 2 . . 2 . . . . 3 . 3 . . 1 . . . . . . . 4 . . . Ballistic Cannon 11 | . . . . . . . . . . . . . . . . . . . . . . . . 2 . . 5 1 2 1 Launcher 6 | . . . . 1 . . . . . . . . . . . . . . . . . . . . . . 3 . 2 . Special Weapon 6 | . . . . . . . 1 . . . . . 1 . . . 1 . . 1 1 1 . . . . . . . . Impact Weapon 1 | . . 1 . . . . . . . . . . . . . . . . . . . . . . . . . . . . Slashing Weapon 8 | . . . . . . 1 1 . . . 1 . . . . . . . . 2 . . . . 1 1 . . . 1 Piercing Weapon 3 | . . . . . . . 1 . . . . . . . . . . . . . . . . . . . 1 . 1 . Special Melee Weapon 3 | . . . . . . . 1 . . . . . . . . 1 . . . . 1 . . . . . . . . . Unidentified Prototypes 66 | . . . 1 4 . . 2 . 4 . 1 . . . . . . 3 . 1 . 5 3 3 3 3 33 . . . Corrupted Parts 2 | . . . . . 1 . . . . . . . . . . . . . . . . . . . . . . . 1 . System Corruption 4 | . . . . . 3 . . . . . . . . . . . . . . . . . . . . . . . 1 . Parts Lost 80 | . . . 2 1 . . . . 3 1 . 1 1 . . 9 5 . 2 2 1 . 3 3 1 4 10 . 2 29 Power 12 | . . . 1 . . . . . . . . 1 . . . 2 . . 1 . . . . . . . 1 . 1 5 Propulsion 25 | . . . 1 . . . . . 1 . . . . . . 2 2 . 1 . . . 1 3 1 1 4 . . 8 Utility 17 | . . . . . . . . . 1 . . . 1 . . . . . . 1 1 . . . . 3 3 . . 7 Weapon 26 | . . . . 1 . . . . 1 1 . . . . . 5 3 . . 1 . . 2 . . . 2 . 1 9 Highest Loss Streak 14 | . . . 2 1 . . . . 2 1 . 1 1 . . 2 4 . 2 1 1 . 2 2 1 2 2 . 2 14 To Critical Strikes 12 | . . . . . . . . . . . . . . . . . 1 . . . . . . . . . 1 . . 10 Average Backups 13 | . 1 1 3 4 5 7 9 9 9 10 9 10 9 10 10 9 8 9 9 9 10 9 9 9 12 12 17 22 20 16 Power 1 | . . . . . . . . . . 1 . . . . . . . 1 1 . 1 1 1 1 1 . 1 2 2 1 Propulsion 2 | . . . 1 4 4 4 3 3 2 2 2 3 3 3 2 1 . . . . 2 2 1 . . 1 3 4 3 2 Utility 5 | . . . . . 1 2 3 3 4 5 5 5 4 4 4 4 5 7 7 6 5 4 5 4 5 3 6 11 9 7 Weapon 1 | . 1 1 1 . . . . 1 . . . . . . . 1 1 . . 1 . . . 1 2 2 3 3 3 3 Tool/Special . | . . . . . . . . . . . . . . . . . . . . . . . . . . . . . . . Unused Backups 33 | . . . . . . 2 2 . 3 . 1 . 1 1 3 . . . . 1 . . . . 2 4 7 . 4 2 Power 5 | . . . . . . . . . . . . . . . . . . . . . . . . . . . 1 . 4 . Propulsion 8 | . . . . . . . 1 . 2 . . . . . 2 . . . . . . . . . . . 3 . . . Utility 16 | . . . . . . 2 1 . 1 . 1 . 1 1 . . . . . 1 . . . . . 3 3 . . 2 Weapon 2 | . . . . . . . . . . . . . . . . . . . . . . . . . 2 . . . . . Tool/Special 2 | . . . . . . . . . . . . . . . 1 . . . . . . . . . . 1 . . . . Average Slot Usage (%) 80 | . 28 25 67 96 90 94 92 100 98 86 92 85 85 89 100 92 83 61 67 68 89 86 88 90 79 82 71 79 80 71 Core 5 | . . . . . . 6 10 13 12 6 12 8 9 11 11 8 5 5 4 . 5 5 4 . 1 3 3 4 4 5 Reactor 3 | . . . . . . . . . . . . . . . . . . . . 4 5 5 4 8 8 8 4 8 7 4 Hover 5 | . . . . . . . . . . . . . . . . . . . . . . . . . . . 9 20 19 18 Flight 22 | . . . 27 36 36 36 39 40 40 40 40 40 35 35 35 34 28 23 27 24 31 31 30 37 29 28 13 . . . Device 12 | . . . . . . . 8 13 11 6 6 3 8 11 11 7 9 11 5 5 9 6 12 14 15 17 13 19 27 23 Storage 4 | . . . . . 4 9 6 6 6 6 6 6 5 5 5 5 5 5 5 5 5 5 4 4 4 4 4 4 4 3 Processor 5 | . . 6 8 . . . 2 . 1 6 6 6 5 5 5 8 6 5 5 6 5 5 4 4 4 4 8 8 4 7 Hackware 3 | . . . 6 9 10 9 . . . . . 1 5 5 5 5 5 5 10 10 10 10 9 9 8 6 2 4 . . Ballistic Gun 5 | . 28 15 13 26 18 22 12 13 12 13 13 8 4 2 17 14 8 . . . . . . . . . 1 . . . Ballistic Cannon 2 | . . . . . . . . . . . . . . . . . . . . . . . . . . . 4 12 11 4 Slashing Weapon 2 | . . . . . . 6 4 . . . . 6 5 5 4 3 4 . . 4 5 5 4 3 4 7 1 . . 1 Peak Build Rating 299 | 2 2 4 28 37 31 37 63 57 70 66 71 70 81 77 76 73 65 55 59 107 118 119 126 151 144 186 280 299 299 293 Average Rating 150 | 1 2 2 17 31 29 33 54 57 59 61 67 63 71 74 73 66 57 49 54 70 111 106 118 134 133 167 222 297 276 253 On Entrance 86 | . 2 2 3 28 31 29 33 57 57 66 61 70 61 75 75 73 62 47 44 46 104 109 115 124 131 144 164 280 299 281 Avg Prop Armor Cover (%) 2 | . . . 10 1 2 1 1 . . . . . . . . 2 2 . . 3 . . . . . 6 12 . . . Naked Turns . | . . . . . . . . . . . . . . . . . . . . . . . . . . . . . . . Heaviest Build 131 | 3 3 3 10 19 13 21 34 34 35 32 37 36 33 35 35 36 28 29 27 41 41 39 40 52 56 66 127 123 131 124 Greatest Support 126 | 3 3 3 22 22 22 22 35 35 35 35 36 36 36 36 38 36 30 24 30 59 43 43 54 58 59 75 126 126 126 126 Greatest Overweight (x) 18 | . . . . 3 . . . . 1 . 1 . . . 1 . . 1 . . . . . 1 . . 18 . 1 1 Average Overweight (x) . | . . . . . . . . . . . . . . . . . . . . . . . . . . . . . . . Largest Inventory Capacity 25 | 5 5 5 5 5 8 10 10 10 10 10 10 10 10 10 10 10 10 10 10 10 10 10 10 15 15 15 25 25 25 25 Average Capacity 15 | 5 5 5 5 5 6 8 10 10 10 10 10 10 10 10 10 10 10 10 10 10 10 10 10 11 15 15 20 25 25 24 Most Carried 25 | 1 1 3 5 5 7 10 10 9 10 10 10 10 10 10 10 10 10 10 10 10 10 10 10 15 15 15 25 25 25 24 Average Carried 14 | . 1 1 3 4 5 8 9 9 9 10 9 10 9 9 9 9 7 9 9 9 9 9 9 10 13 14 18 24 23 17 Final Capacity 25 | 5 5 5 5 5 8 10 10 10 10 10 10 10 10 10 10 10 10 10 10 10 10 10 10 15 15 15 25 25 25 5 Final Carried 25 | 1 1 3 4 5 7 10 9 9 10 10 10 10 10 10 10 9 10 10 10 10 10 10 9 14 14 13 25 25 24 4 Scrap Suit Usage (%) 1 | . . . . . . . . . . . . . . . . . . . . . . . . . . . 1 . . . Class Distribution -------------------- 28% | Sprinter 21% | Scavenger-Scout 18% | Hacker-Sprinter 12% | Scavenger-Ninja 9% | Hacker-Scout Dominant Class ---------------- Mutant | -10/Materials Mutant | -9/Materials Sprinter | -8/Materials Sprinter | -8/Storage Sprinter | -8/Recycling Sprinter | -8/Scraptown Derelict-Sprinter | -6/Factory Sprinter | -6/Waste Sprinter | -6/Factory Sprinter | -6/Garrison Sprinter | -6/Factory Sprinter | -6/Garrison Sprinter | -5/Factory Sprinter | -5/Waste Sprinter | -5/Factory Sprinter | -5/Extension Sprinter | -5/Cetus Mutant | -5/Archives Hacker-Sprinter | -5/Hub_04(d) Hacker-Sprinter | -4/Factory Hacker-Sprinter | -4/Armory Hacker-Sprinter | -4/Lab Hacker-Sprinter | -3/Research Hacker-Sprinter | -3/Testing Hacker-Sprinter | -2/Research Hacker-Sprinter | -2/Quarantine Scavenger-Scout | -2/Protoforge Hacker-Scout | -1/Access Scavenger-Scout | -1/Command Scavenger-Scout | -1/Access_0 Resources | -11 -10 -9 -8 -8 -8 -8 -6 -6 -6 -6 -6 -6 -5 -5 -5 -5 -5 -5 -5 -4 -4 -4 -3 -3 -2 -2 -2 -1 -1 -1 ----------- Run | Yrd Mat Mat Mat Sto Rec Scr Fac Was Fac Gar Fac Gar Fac Was Fac Ext Cet Arc Hub Fac Arm Lab Res Tes Res Qua Frg Acc Com Ac0 Matter Collected 13901 | 220 . . 46 140 83 60 237 . 301 25 234 . 104 42 50 653 9 . 63 349 10 . 141 150 187 178 6472 197 2627 1323 Remotely 3017 | . . . . . . . . . . . . . . . . . . . . . . . . . . . 1598 . 1001 418 Salvage Created 8100 | . . . 46 199 210 . 116 . 490 119 152 . 138 . 164 1283 . . 320 222 50 . 141 150 147 79 3176 . 631 267 Parts 338 | . . . 4 6 2 . 13 . 15 3 2 . 9 . 6 44 . . 16 11 3 . 4 5 10 3 165 . 9 8 Haulers Intercepted 6 | . . . . 1 . . . . 1 . . . 1 . . . . . . 1 . . 1 1 . . . . . . Recyclers Shooed 4 | . . . . . 2 . . . 1 . 1 . . . . . . . . . . . . . . . . . . . Parts Field Recycled . | . . . . . . . . . . . . . . . . . . . . . . . . . . . . . . . Retrieved Matter . | . . . . . . . . . . . . . . . . . . . . . . . . . . . . . . . Parts Self-Destructed . | . . . . . . . . . . . . . . . . . . . . . . . . . . . . . . . Prevented . | . . . . . . . . . . . . . . . . . . . . . . . . . . . . . . . Parts Restored 8 | . . . . . . . . . . . . . . . . . . . . . . . . . . . 8 . . . Faulty 8 | . . . . . . . . . . . . . . . . . . . . . . . . . . . 8 . . . Kills | -11 -10 -9 -8 -8 -8 -8 -6 -6 -6 -6 -6 -6 -5 -5 -5 -5 -5 -5 -5 -4 -4 -4 -3 -3 -2 -2 -2 -1 -1 -1 ------- Run | Yrd Mat Mat Mat Sto Rec Scr Fac Was Fac Gar Fac Gar Fac Was Fac Ext Cet Arc Hub Fac Arm Lab Res Tes Res Qua Frg Acc Com Ac0 Combat Hostiles Destroyed 83 | . . . 2 4 . . 1 . 2 . . . . . . 15 . . 3 . . . . . . . 39 . 9 8 Melee 7 | . . . . . . . . . 1 . . . . . . 3 . . . . . . . . . . 3 . . . Guns 33 | . . . 2 4 . . 1 . 1 . . . . . . 12 . . . . . . . . . . 13 . . . Cannons 34 | . . . . . . . . . . . . . . . . . . . . . . . . . . . 23 . 5 6 Classes Destroyed 22 | . . . 2 2 . . 2 . 2 . . . 1 . . 3 . . . . . . . 1 . . 9 . . . Worker 9 | . . . . . . . 3 . . . . . . . . . . . 4 1 . . . 1 . . . . . . Builder 7 | . . . . . . . . . . . . . . . . 2 . . 1 . . . 1 . 2 . 1 . . . Tunneler 1 | . . . . . . . . . . . . . 1 . . . . . . . . . . . . . . . . . Hauler 6 | . . . . 1 . . . . 1 . . . 1 . . . . . . 1 . . 1 1 . . . . . . Recycler 14 | . . . . 1 3 . . . 2 . 1 . . . 1 3 . . . 1 . . . . 1 . . . 1 . Mechanic 1 | . . . . . . . . . . . . . . . . . . . . . . . . 1 . . . . . . Operator 6 | . . . 1 1 . . 1 . . . . . . . 1 . . . . . . . 1 . . 1 . . . . Drone 2 | . . . . . . . . . . . . . . . . . . . . . . . . . . . 2 . . . Watcher 6 | . . . . . . . . . 1 . . . 1 . . 2 . . 1 . . . . . . 1 . . . . Swarmer 12 | . . . 2 4 . . . . . . . . . . . 4 . . . . . . . . . . 2 . . . Cutter 1 | . . . . . . . . . . . . . . . . . . . . . . . . . . . . . 1 . Grunt 14 | . . . . . . . . . 1 . . . . . . 6 . . 2 . . . . . . . 4 . 1 . Researcher 5 | . . . . . . . . . . . . . . . . . . . . . . . . . . . 5 . . . Sentry 13 | . . . . . . . . . . . . . . . . 3 . . 1 . . . . . . . 9 . . . Hunter 1 | . . . . . . . . . . . . . . . . . . . . . . . . . . . 1 . . . Programmer 6 | . . . . . . . 1 . 1 . . . . . . . . . . . 1 . . . . . 3 . . . Behemoth 2 | . . . . . . . . . . . . . . . . 2 . . . . . . . . . . . . . . M Guard 2 | . . . . . . . . . . . . . . . . . . . . . . . . . . . . . 2 . Enhanced Grunt 3 | . . . . . . . . . . . . . . . . . . . . . . . . . . . . . . 3 Enhanced Hunter 1 | . . . . . . . . . . . . . . . . . . . . . . . . . . . . . . 1 Hotshot 2 | . . . . . . . . . . . . . . . . . . . . . . . . . . . 2 . . . Decapitator 6 | . . . . . . . . . . . . . . . . . . . . . . . . . . . 6 . . . Immortal 2 | . . . . . . . . . . . . . . . . . . . . . . . . . . . 2 . . . Combat Programmer 2 | . . . . . . . . . . . . . . . . . . . . . . . . . . . . . 2 . Striker 2 | . . . . . . . . . . . . . . . . . . . . . . . . . . . 1 . 1 . Executioner 1 | . . . . . . . . . . . . . . . . . . . . . . . . . . . 1 . . . Alpha 7 3 | . . . . . . . . . . . . . . . . . . . . . . . . . . . 3 . . . V-Series 3 | . . . . . . . . . . . . . . . . . . . . . . . . . . . 3 . . . Best Kill Streak 7 | . . . 2 4 2 . 2 . 3 . 1 . 2 . 1 7 . . 6 1 . . 1 1 3 1 4 . 5 4 Combat Bots Only 5 | . . . 2 4 . . 1 . 1 . . . . . . 5 . . 2 . . . . . . . 4 . 4 4 Max Kills in Single Turn 4 | . . . 1 1 1 . 1 . 1 . 1 . 1 . 1 1 . . 4 1 1 . 1 1 1 1 2 . 1 1 Gunslinging . | . . . . . . . . . . . . . . . . . . . . . . . . . . . . . . . Exploded . | . . . . . . . . . . . . . . . . . . . . . . . . . . . . . . . Melee 1 | . . . . . . . . . 1 . . . . . . 1 . . . . . . . . . . 1 . . . Uniques/NPCs Destroyed 6 | . . . . . . . . . . . . . . . . . . . . . . . . . . . . . 2 4 MAIN.C Shell (-1/Command) MAIN.C (-1/Command) A8 (-1/Access_0) A6 (-1/Access_0) A5 (-1/Access_0) A4 (-1/Access_0) Combat | -11 -10 -9 -8 -8 -8 -8 -6 -6 -6 -6 -6 -6 -5 -5 -5 -5 -5 -5 -5 -4 -4 -4 -3 -3 -2 -2 -2 -1 -1 -1 -------- Run | Yrd Mat Mat Mat Sto Rec Scr Fac Was Fac Gar Fac Gar Fac Was Fac Ext Cet Arc Hub Fac Arm Lab Res Tes Res Qua Frg Acc Com Ac0 Hostile Shots Fired 1700 | . 4 5 63 36 . . 28 . 43 7 55 11 16 . 6 77 11 2 18 30 21 . 39 32 15 52 182 10 195 742 Missed 722 | . 1 2 32 17 . . 11 . 23 4 37 6 10 . 1 24 5 . 7 19 11 . 19 13 12 33 83 5 60 287 Intercepted 5 | . . . . . . . . . . . . . . . . . . . . . . . . . . . 1 . 4 . Hits 978 | . 3 3 31 19 . . 17 . 20 3 18 5 6 . 5 53 6 2 11 11 10 . 20 19 3 19 99 5 135 455 Melee 9 | . . . . 1 . . . . . . . 1 . . . . . . . . . . . . . . 1 . 1 5 Projectile 969 | . 3 3 31 18 . . 17 . 20 3 18 4 6 . 5 53 6 2 11 11 10 . 20 19 3 19 98 5 134 450 AOE 4 | . . . . . . . . . . . . 1 . . . . . . . . . . . . . . . . 3 . Critical Strikes 106 | . . . 2 1 . . 1 . 1 . . 1 . . . 2 1 . 1 . . . . 1 . 1 6 . 5 83 Actively Blocked 25 | . . . . . . . . . . . . . . . . . . . . . . . . . . . . . . 25 Part Disruptions 16 | . . . . . . . . . . . . . . . . . . . . . . . . 1 . . . . 8 7 Damage Taken 16593 | . 49 34 372 266 . . 212 . 378 56 203 138 40 . 107 955 172 58 414 251 192 . 375 406 75 714 3068 108 1317 6633 Core 3314 | . 22 22 75 86 . . 45 . 92 . 64 28 21 . 22 144 . 30 144 131 21 . 47 81 . 114 443 . 100 1582 Absorbed by Shields 4884 | . . . . 4 . . . . . . . . . . . 11 13 . . . . . . . . . . 112 1374 3370 Ignored by Resistances 6752 | . . . . . . . . . . . . . . . . . . . . . . . . . . . 82 17 3071 3582 Regen/Repaired (Parts) 1611 | . . . . 10 . . 31 . 115 . . . . . . . . 1 . 109 . . . 103 . 357 415 . . 470 Core Remaining (%) 73 | 100 91 94 . . . 70 . . . . . 73 . . . . . . 63 . . 86 . 90 . . 56 . . 10 Volleys Fired 464 | . . . 6 4 2 . 14 . 9 . . . 1 . 1 49 3 6 19 4 2 . . . . 4 196 7 65 72 Largest 4 | . . . 3 3 2 . 2 . 3 . . . 1 . 4 4 2 1 2 1 1 . . . . 1 3 2 3 3 Hottest 320 | . . . 60 60 40 . 50 . 55 . . . 7 . 165 96 48 90 120 105 7 . . . . 113 320 140 210 270 Shots Fired 798 | . . . 18 12 4 . 28 . 20 . . . 1 . 4 139 5 6 23 4 2 . . . . 4 249 11 149 119 Gun 397 | . . . 18 12 4 . 28 . 20 . . . . . 3 139 4 . 5 . . . . . . . 139 . 10 15 Cannon 388 | . . . . . . . . . . . . . . . 1 . . 6 18 3 . . . . . 4 108 11 133 104 Launcher 8 | . . . . . . . . . . . . . . . . . . . . . . . . . . . 2 . 6 . Special 5 | . . . . . . . . . . . . . 1 . . . 1 . . 1 2 . . . . . . . . . Kinetic 616 | . . . 18 12 4 . 28 . 20 . . . . . 3 139 4 . 5 . . . . . . . 157 11 133 82 Thermal 144 | . . . . . . . . . . . . . . . 1 . . 6 18 3 . . . . . 4 90 . . 22 Explosive 3 | . . . . . . . . . . . . . . . . . . . . . . . . . . . 2 . 1 . Electromagnetic 5 | . . . . . . . . . . . . . . . . . . . . . . . . . . . . . 5 . Entropic 25 | . . . . . . . . . . . . . . . . . . . . . . . . . . . . . 10 15 Robot Hit Streak 49 | . . . 5 11 2 . 5 . 7 . . . 2 . . 8 3 . 4 1 3 . . . . . 49 2 31 20 Robot Miss Streak 7 | . . . 4 . 1 . 3 . 3 . . . . . . 3 1 . 1 . . . . . . . 7 4 2 2 Penetration Max 1 | . . . . . . . . . . . . . . . . . . . . . . . . . . . 1 . 1 . Secondary Targets 2 | . . . 1 . . . . . . . . . . . . 1 . . . . . . . . . . . . . . Max Gunslinging Chain 1 | . . . 1 . . . . . . . . . . . . 1 . . . . . . . . . . . . . . Shots Hit Robots 643 | . . . 9 9 5 . 24 . 23 4 5 . 4 . 5 104 4 . 1 6 3 . 6 7 5 2 195 3 112 107 Core Hits 371 | . . . 4 4 2 . 7 . 10 2 1 . 3 . 2 49 2 . 12 3 1 . 2 3 3 1 179 . 32 49 Critical Kills 34 | . . . . . . . . . . . . . . . . . . . . . . . . . . . 28 . 4 2 Critical Parts Destroyed 66 | . . . . 1 1 . . . . . . . . . . . . . . . . . . . . . 53 . 10 1 Critical Strikes 144 | . . . . 1 1 . 1 . 1 . . . . . . . . . . . . . . . . . 115 . 19 6 Meltdown 6 | . . . . . . . . . . . . . . . . . . . . . . . . . . . . . 4 2 Destroy 126 | . . . . . . . . . . . . . . . . . . . . . . . . . . . 110 . 15 1 Blast 3 | . . . . . . . . . . . . . . . . . . . . . . . . . . . . . . 3 Smash 2 | . . . . 1 1 . . . . . . . . . . . . . . . . . . . . . . . . . Sever 1 | . . . . . . . 1 . . . . . . . . . . . . . . . . . . . . . . . Impale 6 | . . . . . . . . . 1 . . . . . . . . . . . . . . . . . 5 . . . Melee Attacks 396 | . . 1 1 10 9 . 18 . 38 18 37 4 13 . 28 30 1 . . 33 7 5 22 19 12 23 40 . 4 23 Impact 21 | . . 1 1 10 9 . . . . . . . . . . . . . . . . . . . . . . . . . Slashing 248 | . . . . . . . 9 . 3 . 3 4 13 . 28 30 1 . . 33 7 5 20 19 12 23 15 . . 23 Piercing 124 | . . . . . . . 8 . 35 18 34 . . . . . . . . . . . . . . . 25 . 4 . Sneak Attacks 42 | . . . . 2 2 . 6 . 3 . 1 . 2 . 2 5 . . . 4 1 . 4 3 3 1 3 . . . Combat Hostiles 1 | . . . . . . . . . 1 . . . . . . . . . . . . . . . . . . . . . Follow-up Attacks . | . . . . . . . . . . . . . . . . . . . . . . . . . . . . . . . Damage Inflicted 32633 | . 22 . 136 228 247 . 827 . 711 252 228 . 228 . 349 2292 42 . 1571 405 81 . 269 507 341 296 8201 189 8862 6349 Guns 6703 | . . . 76 62 15 . 291 . 264 . . . . . . 1466 42 . . . . . . . . . 3605 . 362 520 Cannons 16429 | . . . . . . . . . . . . . . . . . . . 34 . . . . . . . 3151 189 8500 4555 Explosions 1561 | . . . . . . . . . . . . . . . . . . . 1537 . . . . . . . 24 . . . Melee 7895 | . . . 60 166 232 . 536 . 447 252 228 . 228 . 349 826 . . . 405 81 . 269 507 341 296 1421 . . 1251 Ramming 45 | . 22 . . . . . . . . . . . . . . . . . . . . . . . . . . . . 23 Kinetic 18282 | . . . 76 62 15 . 291 . 264 . . . . . . 1466 42 . . . . . . . . . 4182 189 8500 3195 Thermal 3968 | . . . . . . . . . . . . . . . . . . . 34 . . . . . . . 2574 . . 1360 Explosive 24 | . . . . . . . . . . . . . . . . . . . . . . . . . . . 24 . . . Electromagnetic 1537 | . . . . . . . . . . . . . . . . . . . 1537 . . . . . . . . . . . Impact 458 | . . . 60 166 232 . . . . . . . . . . . . . . . . . . . . . . . . . Slashing 5182 | . . . . . . . 303 . . . . . 228 . 349 826 . . . 405 81 . 269 507 341 296 326 . . 1251 Piercing 2255 | . . . . . . . 233 . 447 252 228 . . . . . . . . . . . . . . . 1095 . . . Entropic 882 | . . . . . . . . . . . . . . . . . . . . . . . . . . . . . 362 520 Highest Corruption 7 | . . . . . 3 . 2 . 1 1 1 1 . . . . . . 1 . 3 3 1 1 . 7 7 . 1 7 Average Corruption 3 | . . . . . 3 . 1 . 1 1 1 1 . . . . . . 1 . 3 3 1 1 . 6 4 . 1 2 Corruption Purged 15 | . . . . . . . 2 . . . . . . . . . . . . . . . . . . 3 8 . 2 . Corruption Blocked . | . . . . . . . . . . . . . . . . . . . . . . . . . . . . . . . Effects 99 | . . . . . 2 . 1 . 1 1 4 1 . . . . . . . . . 2 . 3 . 12 51 . 9 12 Message Errors 37 | . . . . . 2 . 1 . 1 . 3 . . . . . . . . . . 2 . . . 2 17 . 3 6 Matter Fused 20 | . . . . . . . . . . . 1 . . . . . . . . . . . . 1 . 2 10 . 3 3 Heat Flow Errors 9 | . . . . . . . . . . 1 . 1 . . . . . . . . . . . . . 1 3 . 1 2 Energy Discharges 15 | . . . . . . . . . . . . . . . . . . . . . . . . 1 . 2 11 . 1 . Parts Fused 1 | . . . . . . . . . . . . . . . . . . . . . . . . . . . 1 . . . Data Loss (minor) 8 | . . . . . . . . . . . . . . . . . . . . . . . . . . 2 6 . . . Data Loss (major) 4 | . . . . . . . . . . . . . . . . . . . . . . . . 1 . 2 1 . . . Alerts 2 | . . . . . . . . . . . . . . . . . . . . . . . . . . 1 . . 1 . Weapon Failures 3 | . . . . . . . . . . . . . . . . . . . . . . . . . . . 2 . . 1 Overload Shots . | . . . . . . . . . . . . . . . . . . . . . . . . . . . . . . . Overflow Damage 2082 | . . . . 116 172 . 90 . 34 45 64 . . . 84 136 . . 34 28 . . 60 64 124 210 599 . 188 34 Projectiles 506 | . . . . . . . . . . . . . . . . . . . . . . . . . . . 284 . 188 34 Explosions 34 | . . . . . . . . . . . . . . . . . . . 34 . . . . . . . . . . . Melee 1542 | . . . . 116 172 . 90 . 34 45 64 . . . 84 136 . . . 28 . . 60 64 124 210 315 . . . Knockbacks 65 | . . . . . 2 . . . . . . . . . . . . . . . . . . . . . 10 . 24 29 Impact 2 | . . . . . 2 . . . . . . . . . . . . . . . . . . . . . . . . . Kinetic 61 | . . . . . . . . . . . . . . . . . . . . . . . . . . . 10 . 24 27 Secondary 2 | . . . . . . . . . . . . . . . . . . . . . . . . . . . . . . 2 Self-Inflicted Damage 215 | . 11 . . . . . . . . . . . . . . . . . 193 . . . . . . . . . . 11 Shots 2 | . . . . . . . . . . . . . . . . . . . 2 . . . . . . . . . . . Rammed 5 | . 4 . . . . . . . . . . . . . . . . . . . . . . . . . . . . 1 Targets Rammed 5 | . 4 . . . . . . . . . . . . . . . . . . . . . . . . . . . . 1 Kicked . | . . . . . . . . . . . . . . . . . . . . . . . . . . . . . . . Crushed . | . . . . . . . . . . . . . . . . . . . . . . . . . . . . . . . Highest Temperature 399 | . . . 19 88 3 . 378 61 182 238 234 222 . . 27 61 . . 223 114 . . 32 117 66 399 201 316 212 105 Average Temperature 75 | . . . 4 28 1 . 109 33 61 48 68 177 . . 18 9 . . 109 36 . . 10 22 25 102 70 95 82 26 Received Heat Transfer 1591 | . 21 18 153 114 . . 27 . 126 27 75 . . . 9 165 18 9 99 27 9 . 12 21 . . 324 8 80 249 Effects 6 | . . . . . . . 3 . . . . . . . . . . . . . . . . . . 3 . . . . Shutdowns 3 | . . . . . . . . . . . . . . . . . . . . . . . . . . 3 . . . . Energy Bleed 2 | . . . . . . . 2 . . . . . . . . . . . . . . . . . . . . . . . Interference 1 | . . . . . . . 1 . . . . . . . . . . . . . . . . . . . . . . . Siege Activations . | . . . . . . . . . . . . . . . . . . . . . . . . . . . . . . . Martial Activations . | . . . . . . . . . . . . . . . . . . . . . . . . . . . . . . . Shielding Activations . | . . . . . . . . . . . . . . . . . . . . . . . . . . . . . . . Robots Disrupted . | . . . . . . . . . . . . . . . . . . . . . . . . . . . . . . . Combat Hostiles . | . . . . . . . . . . . . . . . . . . . . . . . . . . . . . . . Robots Corrupted 7 | . . . . 3 1 . . . . . . . . . . . . . 3 . . . . . . . . . . . Combat Hostiles 3 | . . . . . . . . . . . . . . . . . . . 3 . . . . . . . . . . . Parts Fried 10 | . . . . 3 2 . . . . . . . . . . . . . 5 . . . . . . . . . . . Impact Corruptions 9 | . . . . 5 4 . . . . . . . . . . . . . . . . . . . . . . . . . Robots Melted 6 | . . . . . . . . . . . . . . . . . . . . . . . . . . . . . 4 2 Combat Hostiles 6 | . . . . . . . . . . . . . . . . . . . . . . . . . . . . . 4 2 Parts Melted 5 | . . . . . . . . . . . . . . . . . . . . . . . . . . . 1 . 2 2 Heat Transferred 2519 | . . . . . . . . . . . . . . . . . . . 37 . . . . . . . 1986 . . 496 Parts Sabotaged . | . . . . . . . . . . . . . . . . . . . . . . . . . . . . . . . Parts Stolen . | . . . . . . . . . . . . . . . . . . . . . . . . . . . . . . . Parts Stripped . | . . . . . . . . . . . . . . . . . . . . . . . . . . . . . . . Power Chain Reactions 4 | . . . . . . . . . . . . . . . . . . . . . 2 . . . . . . . 2 . Alert | -11 -10 -9 -8 -8 -8 -8 -6 -6 -6 -6 -6 -6 -5 -5 -5 -5 -5 -5 -5 -4 -4 -4 -3 -3 -2 -2 -2 -1 -1 -1 ------- Run | Yrd Mat Mat Mat Sto Rec Scr Fac Was Fac Gar Fac Gar Fac Was Fac Ext Cet Arc Hub Fac Arm Lab Res Tes Res Qua Frg Acc Com Ac0 Maximum Alert Level 4 | . . . . 1 1 . . . . 1 . . . . . 1 . . 3 1 1 . . . . . 4 3 3 . Low Security (%) 51 | 100 100 100 100 72 19 . 100 100 100 85 100 100 100 100 100 81 100 100 87 39 38 . 100 100 100 100 15 . . . Level 1 12 | . . . . 27 80 . . . . 14 . . . . . 18 . . 10 60 61 . . . . . 11 . . . Level 2 5 | . . . . . . . . . . . . . . . . . . . . . . . . . . . 14 . 6 . Level 3 18 | . . . . . . . . . . . . . . . . . . . 2 . . . . . . . 22 100 93 . Level 4 12 | . . . . . . . . . . . . . . . . . . . . . . . . . . . 36 . . . Level 5 . | . . . . . . . . . . . . . . . . . . . . . . . . . . . . . . . High Security . | . . . . . . . . . . . . . . . . . . . . . . . . . . . . . . . Max Security . | . . . . . . . . . . . . . . . . . . . . . . . . . . . . . . . Peak Influence 1284 | . . 5 42 326 285 . 67 14 144 238 140 143 130 34 85 257 138 23 768 396 373 . 60 80 39 159 1284 911 735 . Initial 770 | . . . . 4 121 . . 14 9 88 124 91 43 34 16 2 136 8 1 377 186 . . 3 9 8 73 770 576 . Average 359 | . . 1 14 130 228 . 12 14 64 153 106 96 74 28 53 112 93 13 69 223 249 . 28 42 12 109 751 833 691 . Influence Increases 9951 | . . 6 67 448 254 . 198 . 390 160 260 62 166 . 195 1037 24 17 916 662 332 . 166 173 73 401 2393 181 941 429 Destroy 0b10 Robot/C 2200 | . . . 40 120 . . 20 . 40 . . 40 . . . 500 20 . 60 . . . . . . . 960 . 400 . Destroy 0b10 Robot/NC 295 | . . . 5 15 15 . 20 . 20 10 5 . 15 . 10 40 . . 30 25 . . 15 15 15 10 25 . 5 . Destroy Leader 224 | . . . 10 22 . . 10 . 14 . . . 4 . . 54 . . 22 2 . . 2 2 . 2 70 . 10 . Allied During Kill 106 | . . . . 5 . . . . . . . 10 . . . 80 2 . . . . . . . . . 6 . 3 . Trap Triggered on 0b10 40 | . . . . . . . . . . . . . . . . . . . . 10 . . . . . . 30 . . . Successful Hack 1229 | . . 5 12 28 26 . 38 . 84 . 89 . 22 . 51 10 . . 46 150 89 . 72 86 25 125 238 33 . . Select Force Hacks 300 | . . . . . 210 . . . 40 . . . . . . . . . . . 50 . . . . . . . . . Disable Machine 990 | . . . . 30 . . . . . 60 15 . . . . 30 . 15 225 90 45 . . 60 . 90 240 . 45 45 Anti-Garrison Action 50 | . . . . . . . . . . 50 . . . . . . . . . . . . . . . . . . . . Destroy Structure 1917 | . . 1 . 3 3 . 5 . 27 10 31 12 20 . 44 38 2 2 398 130 28 . 32 10 18 39 314 48 333 369 Partial Spotted 1230 | . . . . 60 . . 105 . 165 . 105 . 30 . 90 255 . . 60 90 75 . 30 . 15 90 45 . . 15 Lose Combat Pursuer 1170 | . . . . 165 . . . . . 30 15 . 75 . . 30 . . 75 165 45 . 15 . . 45 465 . 45 . Active Sensor Use 200 | . . . . . . . . . . . . . . . . . . . . . . . . . . . . 100 100 . Influence Decreases 9812 | . . 6 55 148 311 255 157 27 278 48 368 109 150 75 214 797 249 32 151 1052 324 388 160 163 74 285 1240 564 965 1167 Entered New Map 3684 | . . . . 8 191 255 . 27 5 38 114 39 40 65 8 3 109 12 4 393 194 388 . 3 7 7 58 514 325 877 Time Decay 3643 | . . 6 35 90 120 . 137 . 233 . 254 . 90 10 206 384 70 20 117 344 70 . 130 130 57 238 752 50 100 . Lost Part 790 | . . . 20 10 . . . . 30 10 . 10 10 . . 90 50 . 20 10 10 . 30 30 10 40 100 . 20 290 Lost Ally 1130 | . . . . 40 . . 20 . 10 . . 60 10 . . 320 20 . 10 40 50 . . . . . 30 . 520 . Purge Threat 565 | . . . . . . . . . . . . . . . . . . . . 265 . . . . . . 300 . . . Squads Dispatched 95 | . . . 3 4 . . 10 . 17 . 9 . 6 . 9 2 . . 5 12 2 . 2 . . 3 9 1 1 . Investigation 62 | . . . 1 2 . . 7 . 13 . 6 . 5 . 7 2 . . 1 8 1 . 1 . . 1 5 1 1 . Extermination 11 | . . . . . . . 1 . 1 . 1 . 1 . 1 . . . 1 2 1 . 1 . . 1 . . . . Reinforcement 21 | . . . 1 2 . . 2 . 3 . 2 . . . 1 . . . 3 2 . . . . . 1 4 . . . Assault . | . . . . . . . . . . . . . . . . . . . . . . . . . . . . . . . Garrison 1 | . . . 1 . . . . . . . . . . . . . . . . . . . . . . . . . . . Intercept . | . . . . . . . . . . . . . . . . . . . . . . . . . . . . . . . Searches Triggered . | . . . . . . . . . . . . . . . . . . . . . . . . . . . . . . . Unchained Authorized 2 | . . . . . . . . . . . . . . . . . . . . . 1 . . 1 . . . . . . Construction Impeded 2 | . . . . . . . 1 . . . . . . . . . . . 1 . . . . . . . . . . . Haulers Reinforced 1 | . . . . . . . . . 1 . . . . . . . . . . . . . . . . . . . . . Active Scanning Responses 2 | . . . . . . . . . . . . . . . . . . . . . . . . . . . . 1 1 . Cargo Convoy Interrupts . | . . . . . . . . . . . . . . . . . . . . . . . . . . . . . . . Stealth | -11 -10 -9 -8 -8 -8 -8 -6 -6 -6 -6 -6 -6 -5 -5 -5 -5 -5 -5 -5 -4 -4 -4 -3 -3 -2 -2 -2 -1 -1 -1 --------- Run | Yrd Mat Mat Mat Sto Rec Scr Fac Was Fac Gar Fac Gar Fac Was Fac Ext Cet Arc Hub Fac Arm Lab Res Tes Res Qua Frg Acc Com Ac0 Distress Signals 59 | . 2 1 . 1 . . 2 . 2 . . . 1 . . 4 1 . 3 3 . . 1 1 2 2 10 . 23 . Communications Jammed 1 | . . . . . . . . . . . . . . . . . . . . . . . . . . . 1 . . . Distress Signals 1 | . . . . . . . . . . . . . . . . . . . . . . . . . . . 1 . . . Times Spotted 605 | . 5 4 14 25 . . 37 4 49 2 23 8 8 . 14 38 10 3 28 36 36 . 34 22 10 25 116 3 12 39 Peak Tracking Total 19 | . 9 5 11 14 . . 8 5 11 2 8 8 7 . 5 9 5 3 12 10 15 . 10 9 6 9 19 3 5 14 Tactical Retreats 112 | . . . . 5 . . 11 . 10 1 10 1 4 . 4 4 4 . 3 10 4 . 5 5 2 8 13 . 2 6 ECM-based Alert Blocks 193 | . . . . . . . 28 . 35 . 13 2 3 . 9 7 5 . 5 5 15 . 28 13 7 18 . . . . Traps | -11 -10 -9 -8 -8 -8 -8 -6 -6 -6 -6 -6 -6 -5 -5 -5 -5 -5 -5 -5 -4 -4 -4 -3 -3 -2 -2 -2 -1 -1 -1 ------- Run | Yrd Mat Mat Mat Sto Rec Scr Fac Was Fac Gar Fac Gar Fac Was Fac Ext Cet Arc Hub Fac Arm Lab Res Tes Res Qua Frg Acc Com Ac0 Traps Triggered 42 | . . . 1 1 . . 1 . 3 3 1 . 1 . . 5 . . . . . . . 2 . 3 20 1 . . Indirectly . | . . . . . . . . . . . . . . . . . . . . . . . . . . . . . . . Trap Hack Attempts 26 | . . . . . . . . . . . . . . . . . . . . . . . . . . . 26 . . . Triggered . | . . . . . . . . . . . . . . . . . . . . . . . . . . . . . . . Disarmed . | . . . . . . . . . . . . . . . . . . . . . . . . . . . . . . . Reprogrammed 9 | . . . . . . . . . . . . . . . . . . . . 6 . . . . . . 3 . . . Reused 4 | . . . . . . . . . . . . . . . . . . . . 1 . . . . . . 3 . . . Traps Extracted . | . . . . . . . . . . . . . . . . . . . . . . . . . . . . . . . Installed . | . . . . . . . . . . . . . . . . . . . . . . . . . . . . . . . Triggered 4 | . . . . . . . . . . . . . . . . . . . . 1 . . . . . . 3 . . . Machines | -11 -10 -9 -8 -8 -8 -8 -6 -6 -6 -6 -6 -6 -5 -5 -5 -5 -5 -5 -5 -4 -4 -4 -3 -3 -2 -2 -2 -1 -1 -1 ---------- Run | Yrd Mat Mat Mat Sto Rec Scr Fac Was Fac Gar Fac Gar Fac Was Fac Ext Cet Arc Hub Fac Arm Lab Res Tes Res Qua Frg Acc Com Ac0 Machines Disabled 75 | . . . . 2 . . . . . 5 1 . . . . 2 . 1 15 6 3 1 . 4 . 6 23 . 3 3 Max in Single Turn 8 | . . . . 1 . . . . . 1 1 . . . . 1 . 1 8 . 1 1 . 1 . 1 2 . 1 1 Garrison Access 10 | . . . . . . . 1 . . . . . . . 2 . . . . 2 . . 1 . 2 1 1 . . . Garrison Relay 1 | . . . . . . . . . . 1 . . . . . . . . . . . . . . . . . . . . Network Hub 2 | . . . . . . . . . . . . . . . . . . . 2 . . . . . . . . . . . Machines Repaired . | . . . . . . . . . . . . . . . . . . . . . . . . . . . . . . . Machines Dismantled . | . . . . . . . . . . . . . . . . . . . . . . . . . . . . . . . Machines Sabotaged . | . . . . . . . . . . . . . . . . . . . . . . . . . . . . . . . Overloaded Fab Kills . | . . . . . . . . . . . . . . . . . . . . . . . . . . . . . . . Hacking | -11 -10 -9 -8 -8 -8 -8 -6 -6 -6 -6 -6 -6 -5 -5 -5 -5 -5 -5 -5 -4 -4 -4 -3 -3 -2 -2 -2 -1 -1 -1 --------- Run | Yrd Mat Mat Mat Sto Rec Scr Fac Was Fac Gar Fac Gar Fac Was Fac Ext Cet Arc Hub Fac Arm Lab Res Tes Res Qua Frg Acc Com Ac0 Machines Accessed 222 | . . 1 1 6 13 4 14 . 25 . 21 1 11 . 16 10 . . 9 26 9 . 6 5 5 12 20 6 1 . Terminals 114 | . . 1 1 6 6 . 5 . 11 . 7 1 4 . 6 8 . . 9 12 6 . 2 2 2 8 12 4 1 . Fabricators 24 | . . . . . . . 1 . 3 . 4 . 2 . 2 . . . . 2 3 . 1 . 1 . 4 1 . . Repair Stations 10 | . . . . . . . 1 . 3 . 1 . . . . . . . . 2 . . . 1 . 2 . . . . Recycling Units 44 | . . . . . 7 . 4 . 6 . 5 . 4 . 5 2 . . . 6 . . 1 . . . 3 1 . . Scanalyzers 12 | . . . . . . . 2 . . . 2 . 1 . 1 . . . . 2 . . 1 2 . 1 . . . . Garrison Access 14 | . . . . . . . 1 . 2 . 2 . . . 2 . . . . 2 . . 1 . 2 1 1 . . . Total Hacks 659 | . . 2 2 20 33 13 34 . 54 . 46 2 32 . 32 17 . . 24 129 32 . 16 28 9 47 76 10 1 . Successful 424 | . . 2 2 12 22 13 25 . 29 . 26 1 20 . 22 8 . . 18 88 23 . 9 20 6 23 46 8 1 . Failed 232 | . . . . 8 11 . 9 . 25 . 20 1 12 . 10 9 . . 6 40 9 . 7 7 3 24 29 2 . . Catastrophic 26 | . . . . 1 . . 1 . 3 . 6 . 1 . 1 . . . . 2 1 . 1 1 . 4 4 . . . Database Lockouts 3 | . . . . . . . . . . . . . . . . . . . . 1 . . . 1 . . 1 . . . Manual 437 | . . 1 1 11 25 . 18 . 48 . 37 1 26 . 18 8 . . 20 90 31 . 8 9 1 22 58 4 . . Terminals 424 | . . 2 2 20 25 . 13 . 29 . 18 2 18 . 14 14 . . 24 90 28 . 5 10 4 32 65 8 1 . Fabricators 53 | . . . . . . . 2 . 7 . 4 . 8 . 4 . . . . 11 4 . 3 . 3 . 6 1 . . Repair Stations 29 | . . . . . . . 1 . 3 . 1 . . . . . . . . 9 . . . 5 . 10 . . . . Recycling Units 57 | . . . . . 8 . 4 . 7 . 9 . 5 . 7 3 . . . 8 . . 1 . . . 4 1 . . Scanalyzers 59 | . . . . . . . 13 . . . 8 . 1 . 5 . . . . 9 . . 6 13 . 4 . . . . Garrison Access 24 | . . . . . . . 1 . 8 . 6 . . . 2 . . . . 2 . . 1 . 2 1 1 . . . Terminal Hacks 114 | . . 1 1 7 6 13 2 . . . 2 1 5 . 1 4 . . 5 26 4 . . 3 2 5 20 5 1 . Record 5 | . . . . . . 5 . . . . . . . . . . . . . . . . . . . . . . . . Part Schematic 5 | . . . . . 2 . 1 . . . . . . . . . . . . 1 . . . . . . 1 . . . Robot Analysis 15 | . . . . . 3 7 . . . . . . 2 . . . . . . 2 . . . 1 . . . . . . Prototype ID Bank 5 | . . . . . . . . . . . . . . . . . . . . 3 . . . . . . 2 . . . Open Door 13 | . . . . 3 . . . . . . . . . . . 4 . . . . 1 . . . 1 . . 3 1 . Branch Access Points 6 | . . . 1 1 . . . . . . . . . . 1 . . . . 1 . . . . 1 . . 1 . . Emergency Access Points 1 | . . . . . . . . . . . . 1 . . . . . . . . . . . . . . . . . . Terminal Index 8 | . . . . 1 . . 1 . . . 1 . 1 . . . . . 1 1 . . . 1 . . 1 . . . Fabricator Index 4 | . . . . . . . . . . . 1 . 1 . . . . . . 1 . . . . . . 1 . . . Repair Station Index 1 | . . . . . . . . . . . . . . . . . . . . . . . . . . . 1 . . . Recycling Unit Index 1 | . . . . . . . . . . . . . . . . . . . . . . . . . . . 1 . . . Garrison Index 1 | . . . . . . . . . . . . . . . . . . . . . . . . . . . 1 . . . Alert Level 1 | . . . . . . . . . . . . . . . . . . . . . . . . . . . 1 . . . Unreport Threat 4 | . . . . . . . . . . . . . . . . . . . . 2 . . . . . . 2 . . . Locate Traps 3 | . . . . . . . . . . . . . . . . . . . . 2 . . . . . 1 . . . . Reprogram Traps 1 | . . . . . . . . . . . . . . . . . . . . 1 . . . . . . . . . . Extermination Status 2 | . . . . . . . . . . . . . . . . . . . . 2 . . . . . . . . . . Reinforcement Status 1 | . . . . . . . . . . . . . . . . . . . . 1 . . . . . . . . . . Recall Extermination 3 | . . . . . . . . . . . . . . . . . . . 1 2 . . . . . . . . . . Recall Reinforcements 2 | . . . . . . . . . . . . . . . . . . . 1 1 . . . . . . . . . . Registered Prototypes 2 | . . . . . . . . . . . . . . . . . . . . 1 . . . . . . 1 . . . Zone Layout 28 | . . 1 . 2 1 . . . . . . . 1 . . . . . 2 5 3 . . 1 . 4 7 1 . . Proto ID Catalog 2 | . . . . . . 1 . . . . . . . . . . . . . . . . . . . . 1 . . . Fabricator Hacks 21 | . . . . . . . 2 . 1 . . . 2 . 3 . . . . 7 1 . 1 . 1 . 2 1 . . Network Status 7 | . . . . . . . . . 1 . . . . . 2 . . . . . 1 . 1 . 1 . . 1 . . Load Schematic 8 | . . . . . . . 1 . . . . . 1 . 1 . . . . 4 . . . . . . 1 . . . Build 6 | . . . . . . . 1 . . . . . 1 . . . . . . 3 . . . . . . 1 . . . Repair Station Hacks 16 | . . . . . . . . . . . . . . . . . . . . 8 . . . 4 . 4 . . . . Scan Component 7 | . . . . . . . . . . . . . . . . . . . . 3 . . . 2 . 2 . . . . Repair 7 | . . . . . . . . . . . . . . . . . . . . 3 . . . 2 . 2 . . . . Refit 2 | . . . . . . . . . . . . . . . . . . . . 2 . . . . . . . . . . Recycling Unit Hacks 1 | . . . . . 1 . . . . . . . . . . . . . . . . . . . . . . . . . Retrieve Components 1 | . . . . . 1 . . . . . . . . . . . . . . . . . . . . . . . . . Scanalyzer 40 | . . . . . . . 9 . . . 6 . . . 5 . . . . 6 . . 3 8 . 3 . . . . Insert Component 18 | . . . . . . . 4 . . . 2 . . . 1 . . . . 3 . . 1 4 . 3 . . . . Analyze 11 | . . . . . . . 2 . . . 2 . . . 1 . . . . 3 . . . 3 . . . . . . Retrieve Study 11 | . . . . . . . 3 . . . 2 . . . 3 . . . . . . . 2 1 . . . . . . Garrison Access Hacks 13 | . . . . . . . 1 . 2 . 1 . . . 2 . . . . 2 . . 1 . 2 1 1 . . . Unlock Access 2 | . . . . . . . . . 1 . 1 . . . . . . . . . . . . . . . . . . . Seal Access 10 | . . . . . . . 1 . . . . . . . 2 . . . . 2 . . 1 . 2 1 1 . . . Coupler Status 1 | . . . . . . . . . 1 . . . . . . . . . . . . . . . . . . . . . Unauthorized Hacks 216 | . . 1 1 5 15 . 11 . 26 . 17 . 13 . 11 4 . . 13 38 17 . 4 5 1 10 23 1 . . Terminals 145 | . . 1 1 5 8 . 6 . 10 . 7 . 7 . 7 2 . . 13 30 14 . 2 5 . 10 16 1 . . Track 24 | . . . . . . . . . 2 . . . . . . . . . 4 8 2 . . 1 . 3 4 . . . Assimilate 12 | . . . . . . . 2 . 1 . 1 . 1 . . . . . 1 2 2 . . . . . 2 . . . Botnet 45 | . . 1 1 2 3 . 1 . 2 . 1 . 3 . 1 2 . . 2 10 4 . . 2 . 4 5 1 . . Disrupt 4 | . . . . . . . . . . . . . . . . . . . 1 2 1 . . . . . . . . . Operators 1 | . . . . . . . . . . . . . . . . . . . . 1 . . . . . . . . . . Skim 59 | . . . . 3 5 . 3 . 5 . 5 . 3 . 6 . . . 5 7 5 . 2 2 . 3 5 . . . Fabricators 17 | . . . . . . . . . 3 . 1 . 2 . . . . . . 2 3 . 1 . 1 . 4 . . . Prioritize 2 | . . . . . . . . . . . . . 1 . . . . . . 1 . . . . . . . . . . Liberate 1 | . . . . . . . . . . . . . . . . . . . . . 1 . . . . . . . . . Fabnet 7 | . . . . . . . . . 1 . 1 . . . . . . . . . . . . . 1 . 4 . . . Haulers 2 | . . . . . . . . . . . . . . . . . . . . . 1 . 1 . . . . . . . Overload 1 | . . . . . . . . . . . . . . . . . . . . . 1 . . . . . . . . . Download 2 | . . . . . . . . . 2 . . . . . . . . . . . . . . . . . . . . . Recompile 2 | . . . . . . . . . . . . . 1 . . . . . . 1 . . . . . . . . . . Repair Stations 5 | . . . . . . . 1 . 3 . 1 . . . . . . . . . . . . . . . . . . . Mechanics 1 | . . . . . . . . . . . 1 . . . . . . . . . . . . . . . . . . . Patch 4 | . . . . . . . 1 . 3 . . . . . . . . . . . . . . . . . . . . . Recycling Units 41 | . . . . . 7 . 4 . 6 . 4 . 4 . 4 2 . . . 6 . . 1 . . . 3 . . . Tunnel 7 | . . . . . 7 . . . . . . . . . . . . . . . . . . . . . . . . . Fedlink 32 | . . . . . . . 4 . 6 . 4 . 4 . 4 2 . . . 6 . . 1 . . . 1 . . . Scraphulk 2 | . . . . . . . . . . . . . . . . . . . . . . . . . . . 2 . . . Scanalyzers . | . . . . . . . . . . . . . . . . . . . . . . . . . . . . . . . Garrison Access 8 | . . . . . . . . . 4 . 4 . . . . . . . . . . . . . . . . . . . Broadcast 2 | . . . . . . . . . 1 . 1 . . . . . . . . . . . . . . . . . . . Decoy 2 | . . . . . . . . . 1 . 1 . . . . . . . . . . . . . . . . . . . Reprogram 2 | . . . . . . . . . 1 . 1 . . . . . . . . . . . . . . . . . . . Intercept 1 | . . . . . . . . . 1 . . . . . . . . . . . . . . . . . . . . . Watchers 1 | . . . . . . . . . . . 1 . . . . . . . . . . . . . . . . . . . Data Cores Recovered 5 | . . . . 1 . . 1 . . . . . . . 1 . . . . . . . 1 . . 1 . . . . Used 2 | . . . . 1 . . . . . . . . . . . . . . . . . . . . . 1 . . . . Hacking Detections 133 | . . 1 1 5 6 . 7 . 15 . 12 1 7 . 10 8 . . 8 14 6 . 2 3 1 8 16 2 . . Full Trace Events 15 | . . . . 2 . . 2 . 2 . 1 . . . 3 . . . 1 1 . . . . . 1 2 . . . Feedback Events . | . . . . . . . . . . . . . . . . . . . . . . . . . . . . . . . Feedback Blocked . | . . . . . . . . . . . . . . . . . . . . . . . . . . . . . . . Robot Schematics Acquired 4 | . . . . . . . . . . . . . . . . . . . . . . . . . . . 4 . . . Robots Built . | . . . . . . . . . . . . . . . . . . . . . . . . . . . . . . . Authchips . | . . . . . . . . . . . . . . . . . . . . . . . . . . . . . . . Time 84 | . . . . . . . . . . . . . 84 . . . . . . . . . . . . . . . . . Total Robot Build Rating . | . . . . . . . . . . . . . . . . . . . . . . . . . . . . . . . Part Schematics Acquired 39 | . . . . . 2 . 3 . 2 . 2 . . . 1 . . . . 4 . . . 2 . . 23 . . . Parts Built 7 | . . . . . . . 2 . . . . . . . . . . . . 3 . . . . . . 2 . . . Authchips 3 | . . . . . . . 1 . . . . . . . . . . . . 2 . . . . . . . . . . Time 180 | . . . . . . . 42 . . . . . . . . . . . . 99 . . . . . . 39 . . . Total Part Build Rating 45 | . . . . . . . 8 . . . . . . . . . . . . 23 . . . . . . 14 . . . Part Studies Acquired 11 | . . . . . . . 3 . . . 2 . . . 3 . . . . . . . 2 1 . . . . . . Parts Repaired 7 | . . . . . . . . . . . . . . . . . . . . 3 . . . 2 . 2 . . . . Time 353 | . . . . . . . . . . . . . . . . . . . . 210 . . . 60 . 83 . . . . Parts Recycled . | . . . . . . . . . . . . . . . . . . . . . . . . . . . . . . . Recycled Matter . | . . . . . . . . . . . . . . . . . . . . . . . . . . . . . . . Retrieved Matter . | . . . . . . . . . . . . . . . . . . . . . . . . . . . . . . . Retrieved Components 3 | . . . . . 3 . . . . . . . . . . . . . . . . . . . . . . . . . Parts Scanalyzed 11 | . . . . . . . 3 . . . 2 . . . 1 . . . . 3 . . . 2 . . . . . . Part Schematics Acquired 10 | . . . . . . . 2 . . . 2 . . . 1 . . . . 3 . . . 2 . . . . . . Parts Damaged 1 | . . . . . . . 1 . . . . . . . . . . . . . . . . . . . . . . . Bothacking | -11 -10 -9 -8 -8 -8 -8 -6 -6 -6 -6 -6 -6 -5 -5 -5 -5 -5 -5 -5 -4 -4 -4 -3 -3 -2 -2 -2 -1 -1 -1 ------------ Run | Yrd Mat Mat Mat Sto Rec Scr Fac Was Fac Gar Fac Gar Fac Was Fac Ext Cet Arc Hub Fac Arm Lab Res Tes Res Qua Frg Acc Com Ac0 Used RIF Installer 2 | . . . . . . . . . . 1 . 1 . . . . . . . . . . . . . . . . . . Alert ID Control 1 | . . . . . . . . . . . . 1 . . . . . . . . . . . . . . . . . . Robots Hacked 39 | . . . . . . . 1 . . . . . 1 . . 1 . . 1 1 2 . 1 . . . . . 31 . Non-combat 3 | . . . . . . . 1 . . . . . 1 . . . . . . . . . 1 . . . . . . . Combat 36 | . . . . . . . . . . . . . . . . 1 . . 1 1 2 . . . . . . . 31 . Robot Hacks Applied 4 | . . . . . . . 1 . . . . . 1 . . . . . . . . . 2 . . . . . . . parse_system 1 | . . . . . . . . . . . . . 1 . . . . . . . . . . . . . . . . . no_distress 1 | . . . . . . . . . . . . . . . . . . . . . . . 1 . . . . . . . find_chute 1 | . . . . . . . 1 . . . . . . . . . . . . . . . . . . . . . . . ignore_repairs 1 | . . . . . . . . . . . . . . . . . . . . . . . 1 . . . . . . . Relay Couplers Released 5 | . . . . . . . . . . 5 . . . . . . . . . . . . . . . . . . . . Machine Destruction 5 | . . . . . . . . . . 5 . . . . . . . . . . . . . . . . . . . . Fabnet Peak Effective % 15 | . . . . . . . . . . . . . 6 6 6 6 6 6 6 2 2 2 . . . . . 15 15 15 Autooverrided 36 | . . . . . . . . . . . . . . . . 1 . . 1 1 2 . . . . . . . 31 . Robots Rewired 14 | . . . . . . . . . . . . . . . . 13 . . . . 1 . . . . . . . . . Allies Hacked 1 | . . . . . . . . . . . . . . . . . . . . . . . . . . . . . 1 . Hacks Repelled . | . . . . . . . . . . . . . . . . . . . . . . . . . . . . . . . Allies | -11 -10 -9 -8 -8 -8 -8 -6 -6 -6 -6 -6 -6 -5 -5 -5 -5 -5 -5 -5 -4 -4 -4 -3 -3 -2 -2 -2 -1 -1 -1 -------- Run | Yrd Mat Mat Mat Sto Rec Scr Fac Was Fac Gar Fac Gar Fac Was Fac Ext Cet Arc Hub Fac Arm Lab Res Tes Res Qua Frg Acc Com Ac0 Total Allies 72 | . . . . 2 . . 2 . 1 . 4 . 1 . . 19 . . 2 3 4 . . . . . 3 . 31 . Largest Group 20 | . . . . 2 . . 1 . 1 . 3 3 1 . . 7 1 . 1 1 2 . . . . . 2 . 20 . Highest-Rated Group 1166 | . . . . 62 . . 26 . 26 . 87 87 26 . . 190 159 . 142 56 80 . . . . . 278 . 1166 . Highest-Rated Ally 159 | . . . . 31 . . 26 . 26 . 29 29 26 . . 159 159 . 142 56 54 . . . . . 139 . 89 . Total Orders 3 | . . . . . . . . . . . . . . . . . . . . . . . . . . . 3 . . . STAY 2 | . . . . . . . . . . . . . . . . . . . . . . . . . . . 2 . . . FOLLOW 1 | . . . . . . . . . . . . . . . . . . . . . . . . . . . 1 . . . Ally Attacks 253 | . . . . 15 . . . . . . . 14 . . . 89 9 . 1 6 6 . . . . . 40 . 73 . Total Damage 9142 | . . . . 250 . . . . . . . 152 . . . 1743 164 . 57 654 233 . . . . . 1628 . 4261 . Kills 42 | . . . . 2 . . . . . . . 2 . . . 12 1 . . 2 . . . . . . 7 . 16 . Allies Corrupted 5 | . . . . . . . . . . . . . . . . . . . . . . . . . . . 1 . 4 . Allies Melted 2 | . . . . . . . . . . . . . . . . . . . . . . . . . . . 1 . 1 . Intel | -11 -10 -9 -8 -8 -8 -8 -6 -6 -6 -6 -6 -6 -5 -5 -5 -5 -5 -5 -5 -4 -4 -4 -3 -3 -2 -2 -2 -1 -1 -1 ------- Run | Yrd Mat Mat Mat Sto Rec Scr Fac Was Fac Gar Fac Gar Fac Was Fac Ext Cet Arc Hub Fac Arm Lab Res Tes Res Qua Frg Acc Com Ac0 Active Infowar (turns) 11880 | . . . . . . . 499 13 513 107 555 42 196 39 434 937 140 41 241 897 151 110 271 278 133 503 4039 110 987 644 Optics 9630 | . . . . . . . 257 . 110 107 555 42 196 39 434 937 140 41 241 897 151 110 271 278 133 503 4039 110 39 . A.S.S. 5543 | . . . . . . . . . . . . . . . . . . . . . . . . . . . 3822 110 967 644 Structural 135 | . . . . . . . . . . . . . . . . . . . . . . . . . 89 46 . . . . Machine Analysis 236 | . . . . . . . . . . . . . . . . . . . . 236 . . . . . . . . . . Cloaking 4960 | . . . . . . . 137 . . . . . . . . . . . . . 16 . 184 267 132 451 2491 110 912 260 Jamming 302 | . . . . . . . . . . . . . . . . . . . . . . . . . . 87 215 . . . ECM 2980 | . . . . . . . 341 13 438 14 321 12 78 39 434 323 108 24 80 315 38 3 81 79 61 178 . . . . Robot Analysis Total 15 | . . . . . 3 7 . . . . . . 2 . . . . . . 2 . . . 1 . . . . . . Derelict Logs Recovered . | . . . . . . . . . . . . . . . . . . . . . . . . . . . . . . . Drone Launches . | . . . . . . . . . . . . . . . . . . . . . . . . . . . . . . . Drone Recoveries . | . . . . . . . . . . . . . . . . . . . . . . . . . . . . . . . Exploration | -11 -10 -9 -8 -8 -8 -8 -6 -6 -6 -6 -6 -6 -5 -5 -5 -5 -5 -5 -5 -4 -4 -4 -3 -3 -2 -2 -2 -1 -1 -1 ------------- Run | Yrd Mat Mat Mat Sto Rec Scr Fac Was Fac Gar Fac Gar Fac Was Fac Ext Cet Arc Hub Fac Arm Lab Res Tes Res Qua Frg Acc Com Ac0 Turns Passed 13079 | 19 27 62 91 185 245 274 520 13 513 107 555 42 196 39 434 937 140 41 241 897 151 110 271 278 133 503 4039 110 1260 646 Spaces Moved 26854 | 29 46 109 152 410 550 912 1245 62 1393 247 1358 135 661 164 857 1240 121 29 496 1984 477 175 712 690 402 908 8158 231 1981 920 Core 215 | 29 46 109 23 2 . . . . . . . . . . . . . . . . . . . . . . 6 . . . Treads . | . . . . . . . . . . . . . . . . . . . . . . . . . . . . . . . Legs . | . . . . . . . . . . . . . . . . . . . . . . . . . . . . . . . Wheels . | . . . . . . . . . . . . . . . . . . . . . . . . . . . . . . . Hover 7002 | . . . . . . . . . . . . . . . . . . . . . . . . . . . 3870 231 1981 920 Flight 19637 | . . . 129 408 550 912 1245 62 1393 247 1358 135 661 164 857 1240 121 29 496 1984 477 175 712 690 402 908 4282 . . . Fastest Speed 13 | 50 50 50 26 26 27 27 20 20 20 21 20 20 20 20 20 20 23 26 24 20 20 20 16 13 19 20 13 32 32 31 Average Speed 24 | 50 50 50 33 27 27 27 20 20 20 21 20 20 20 20 20 20 24 37 24 22 20 20 18 16 19 20 26 32 32 34 Slowest Speed 950 | 50 50 50 50 200 29 29 27 20 90 21 85 20 20 20 89 23 26 94 26 29 20 20 20 98 23 28 950 32 111 108 Overloaded Moves 120 | . . . . . . . . . . . . . . . . . . . . . . . . 35 . . 85 . . . Propulsion Burnouts 1 | . . . . . . . . . . . . . . . . . . . . . . . . 1 . . . . . . Robots Hopped 192 | . . . 6 8 . . 21 . 19 . 13 2 6 . 6 11 2 1 5 18 2 . 8 19 3 9 33 . . . Potential Cave-ins 3 | . . . . . . . . . . . . . . . . . . . . . . . . . . . . . . 3 Cave-ins Triggered . | . . . . . . . . . . . . . . . . . . . . . . . . . . . . . . . Teleports 3 | . . . . . . . . . . . . . . . . . . . . . . . . . . . 1 . 1 1 Exploration Rate (%) 51 | 3 21 19 19 71 91 83 40 82 49 45 56 34 24 89 32 82 54 68 61 52 52 94 24 53 17 95 85 9 48 47 Regions Visited 30 Branch Regions 14 Pre-discovered Areas 19 | . . . . . 8 . 1 . . . 5 . . . 2 . . . 1 . . . . . . . 2 . . . Known Exits Taken 13 | . . . 1 1 . . . . 1 . 1 . . . 1 1 . . 1 1 . . 1 . 1 . 1 1 1 . Unknown Exits Taken 11 | 1 1 1 . . 1 1 . . . . . . . . . . 1 1 . . 1 1 . 1 . 1 . . . . Scrap Searched 9 | . . . . . . 9 . . . . . . . . . . . . . . . . . . . . . . . . Spaces Dug 260 | . . 1 . 2 3 . 5 . 27 5 31 2 10 . 22 14 1 1 18 25 4 . 16 5 6 14 31 7 8 2 Terrain Destroyed 776 | . . 1 . 2 3 . 5 . 27 5 31 2 10 . 22 14 1 1 336 27 4 . 16 5 6 14 67 24 57 96 Melee 198 | . . 1 . 2 3 . 5 . 27 5 31 2 10 . 21 14 1 . . 24 4 . 16 5 6 10 6 . 3 2 Projectile 215 | . . . . . . . . . . . . . . . 1 . . 1 20 3 . . . . . 4 47 24 21 94 AOE 359 | . . . . . . . . . . . . . . . . . . . 316 . . . . . . . 10 . 33 . Terrain Rammed . | . . . . . . . . . . . . . . . . . . . . . . . . . . . . . . . Walls Destroyed . | . . . . . . . . . . . . . . . . . . . . . . . . . . . . . . . Machines Disabled . | . . . . . . . . . . . . . . . . . . . . . . . . . . . . . . . Actions | -11 -10 -9 -8 -8 -8 -8 -6 -6 -6 -6 -6 -6 -5 -5 -5 -5 -5 -5 -5 -4 -4 -4 -3 -3 -2 -2 -2 -1 -1 -1 --------- Run | Yrd Mat Mat Mat Sto Rec Scr Fac Was Fac Gar Fac Gar Fac Was Fac Ext Cet Arc Hub Fac Arm Lab Res Tes Res Qua Frg Acc Com Ac0 Total 31730 | 31 49 113 168 443 622 936 1435 61 1526 273 1567 139 699 168 1064 1776 222 53 586 2350 518 242 805 802 434 1181 9654 254 2479 1080 Wait 3111 | . . . . 9 55 6 136 . 47 3 161 . 14 . 167 369 93 9 68 301 25 41 63 80 . 226 885 5 338 10 Move 26470 | 28 45 108 140 394 549 911 1205 61 1354 246 1332 131 649 163 844 1218 117 26 486 1947 472 174 699 653 395 891 8103 230 1980 919 Hop 163 | . . . 5 7 . . 19 . 19 . 12 1 6 . 6 10 1 1 4 18 2 . 4 17 3 7 21 . . . Pick Up 135 | 1 . 1 4 1 2 4 3 . 6 . 2 . 3 . 6 1 4 1 . 5 1 3 . 7 2 10 46 2 16 4 Fast Attach 194 | 2 . 1 7 2 2 3 10 . 5 2 1 . 3 3 2 7 . . 2 14 3 7 4 9 7 4 79 2 10 3 Attach 136 | . . . 3 . . . 5 . 1 . 2 . 2 . . 4 1 4 2 7 1 2 1 3 2 7 54 2 13 20 Detach 96 | . . 1 . . 1 1 2 . 1 . . . . 1 . 2 . 3 2 5 2 1 . 2 3 3 55 1 8 2 Swap 168 | . . 1 2 5 . 3 13 . 7 2 16 3 3 . 2 7 1 1 3 5 . 1 7 4 2 . 36 3 19 22 Drop 228 | . . . . 1 2 8 9 . 9 2 4 . 5 1 8 2 1 2 . 11 2 8 2 8 8 9 98 2 22 4 Fire 464 | . . . 6 4 2 . 14 . 9 . . . 1 . 1 49 3 6 19 4 2 . . . . 4 196 7 65 72 Melee 391 | . . 1 1 10 9 . 18 . 38 18 37 4 13 . 28 30 1 . . 31 7 5 22 19 12 20 40 . 4 23 Ram 5 | . 4 . . . . . . . . . . . . . . . . . . . . . . . . . . . . 1 Kick . | . . . . . . . . . . . . . . . . . . . . . . . . . . . . . . . Crush . | . . . . . . . . . . . . . . . . . . . . . . . . . . . . . . . Escape Stasis 56 | . . . . 10 . . . . 30 . . . . . . 1 . . . . . . . . . . 15 . . . Rewire 80 | . . . . . . . . . . . . . . . . 76 . . . . . . . . . . . . 4 . Trap 26 | . . . . . . . . . . . . . . . . . . . . . . . . . . . 26 . . . Miscellaneous 7 | . . . . . . . 1 . . . . . . . . . . . . 2 1 . 3 . . . . . . . Route ------- -11/Scrapyard -10/Materials -9/Materials -8/Materials (discovered 2 exits: [*Fac] / *Sto) -8/Storage (discovered 2 exits: [*Fac] / *Rec) -8/Recycling (discovered 2 exits: *Fac / *Scr) -8/Scraptown (discovered 2 exits: *Fac x2) -6/Factory (discovered 4 exits: *Fac x2 / *Low x2) -6/Waste -6/Factory (discovered 7 exits: *Fac x4 / *Low x2 / Gar) -6/Garrison -6/Factory (discovered 4 exits: *Fac / *Low x2 / Gar) -6/Garrison -5/Factory -5/Waste -5/Factory (discovered 8 exits: *Fac x4 / Upp x2 / *Ext x2) -5/Extension (discovered 2 exits: *Fac / *Cet) -5/Cetus -5/Archives -5/Hub_04(d) (discovered 3 exits: *Fac x3) -4/Factory (discovered 4 exits: *Res / Upp x2 / *Arm) -4/Armory -4/Lab -3/Research (discovered 2 exits: *Tes x2) -3/Testing -2/Research (discovered 2 exits: *Qua x2) -2/Quarantine (discovered 3 exits: *Acc / [*Sec] / *Frg) -2/Protoforge -1/Access -1/Command (discovered 3 exits: Sur x2 / *Ac0) -1/Access_0 To Fleet Rendezvous History --------- Turn | Location | Event 8 | -11/Scrapyard | Discovered new exit (range 16) 20 | -11/Scrapyard | Entered Materials 40 | -10/Materials | Discovered new exit (range 15) 47 | -10/Materials | Entered another Materials area 47 | -9/Materials | Evolved 2 slots: Propulsion x2 103 | -9/Materials | Discovered new exit (range 11) 109 | -9/Materials | Entered another Materials area 109 | -8/Materials | Evolved 2 slots: Weapon x2 139 | -8/Materials | Identified exit to Storage 151 | -8/Materials | Discovered new exit (range 15) 159 | -8/Materials | Garrison activated, responded to threat 200 | -8/Materials | Entered Storage 260 | -8/Storage | Found Prototype Protection 260 | -8/Storage | Identified Lgt. Regenerative Plating 300 | -8/Storage | Discovered new exit (range 16) 313 | -8/Storage | Met a pair of Derelict thieves 380 | -8/Storage | Identified exit to Recycling 384 | -8/Storage | Used back door to open Recycling access 385 | -8/Storage | Entered Recycling 409 | -8/Recycling | Build established: Sprinter 431 | -8/Recycling | Discovered new exit (range 16) 509 | -8/Recycling | Learned 8 Factory zone layouts 540 | -8/Recycling | Learned Factory scanalyzer intel 566 | -8/Recycling | Learned location of Zion (-6) 567 | -8/Recycling | Learned location of 1 exit from Lower Caves 571 | -8/Recycling | Scanned before Scraplab entrance 578 | -8/Recycling | Learned Storage garrison access intel 599 | -8/Recycling | Learned Factory emergency access door positions 628 | -8/Recycling | Entered Scraplab 630 | -8/Recycling | Discovered new exit (range 2) 630 | -8/Recycling | Entered Scraptown 630 | -8/Scraptown | System corruption cleaned by C-Scrubber 675 | -8/Scraptown | Discovered new exit (range 13) 694 | -8/Scraptown | Visited Bundlers 718 | -8/Scraptown | Visited Symbiants 720 | -8/Scraptown | Visited Awakened 726 | -8/Scraptown | Visited Comm Corps 728 | -8/Scraptown | Visited The Evicted 732 | -8/Scraptown | Visited UFD Registry 732 | -8/Scraptown | Registered with UFD as "Toolbucket" 735 | -8/Scraptown | Visited TADAMA 737 | -8/Scraptown | Visited Supply Room 793 | -8/Scraptown | Visited Observation Area 797 | -8/Scraptown | Visited Scrap Suit Storage 802 | -8/Scraptown | Visited Analyses Database 808 | -8/Scraptown | Visited Junk Repository 814 | -8/Scraptown | Visited Derelict Rescue Squad 817 | -8/Scraptown | Visited DA-N13 Charitable Foundation 819 | -8/Scraptown | Found DCF Scrap (29 items) 831 | -8/Scraptown | Visited Science Guys 859 | -8/Scraptown | Visited Abandonware Association 862 | -8/Scraptown | Learned abandonware demo "REBOOT5.EXE" 868 | -8/Scraptown | Visited LU-1G1's Boring Crew 888 | -8/Scraptown | Met Optimus 888 | -8/Scraptown | Accepted into 0bPrime 903 | -8/Scraptown | Discovered new exit (range 3) 904 | -8/Scraptown | Entered Factory 904 | -6/Factory | Evolved 4 slots: Power x1, Propulsion x2, Utility x1 905 | -6/Factory | Identified exit to Lower Caves 908 | -6/Factory | Loaded intel: 4 scanalyzer locations 934 | -6/Factory | Loaded intel: 8 recycling unit locations 949 | -6/Factory | Learned location of Protoforge (-2) 1020 | -6/Factory | Fabricated Imp. Salvage Targeting Computer? 1060 | -6/Factory | Discovered new exit (range 15) 1138 | -6/Factory | Spotted B-75 Beast 1342 | -6/Factory | Discovered new exit (range 4) 1424 | -6/Factory | Sucked down chute 1424 | -6/Factory | Entered Waste 1429 | -6/Waste | Spotted C-40 Crusher 1431 | -6/Waste | Spotted C-40 Crusher 1434 | -6/Waste | Spotted C-40 Crusher 1434 | -6/Waste | Discovered new exit (range 16) 1434 | -6/Waste | Spotted C-40 Crusher 1434 | -6/Waste | Spotted C-40 Crusher 1437 | -6/Waste | Entered Factory 1450 | -6/Factory | Discovered exit to Lower Caves (range 14) 1455 | -6/Factory | Loaded intel: 8 recycling unit locations 1466 | -6/Factory | Spotted B-75 Beast 1633 | -6/Factory | Discovered new exit (range 16) 1660 | -6/Factory | Discovered new exit (range 15) 1897 | -6/Factory | Identified exit to Factory 1937 | -6/Factory | Identified exit to Garrison 1950 | -6/Factory | Entered Garrison 1973 | -6/Garrison | Garrison Relay disabled 1997 | -6/Garrison | Spotted B-75 Beast 1997 | -6/Garrison | Spotted B-75 Beast 2014 | -6/Garrison | Installed Relay Interface Framework 2025 | -6/Garrison | Discovered new exit (range 10) 2057 | -6/Garrison | Entered Factory 2141 | -6/Factory | Spotted B-75 Beast 2174 | -6/Factory | Discovered exit to Lower Caves (range 11) 2351 | -6/Factory | Discovered exit to Factory (range 22) 2371 | -6/Factory | Loaded intel: 8 recycling unit locations 2391 | -6/Factory | Identified exit to Garrison 2453 | -6/Factory | Learned location of Lower Caves (-6) 2493 | -6/Factory | Learned location of 1 exit from Extension 2546 | -6/Factory | Learned Hub_04(d) emergency access door positions 2547 | -6/Factory | Learned Factory emergency access door positions 2548 | -6/Factory | Learned Hub_04(d) stockpile data 2560 | -6/Factory | Learned location of Proximity Caves (-6) 2566 | -6/Factory | Discovered exit to Lower Caves (range 15) 2583 | -6/Factory | Learned location of Archives (-5) 2612 | -6/Factory | Entered Garrison 2612 | -6/Garrison | Accompanied by 3 allies 2624 | -6/Garrison | Spotted B-75 Beast 2648 | -6/Garrison | Discovered exit to Factory (range 9) 2650 | -6/Garrison | Expanded RIF knowledge: Alert ID Control 2654 | -6/Garrison | Entered Factory 2654 | -5/Factory | Evolved 2 slots: Utility x2 2655 | -5/Factory | Identified exit to Extension 2669 | -5/Factory | Loaded intel: 8 recycling unit locations 2738 | -5/Factory | Spotted B-75 Beast 2850 | -5/Factory | Manually triggered Chute Trap 2850 | -5/Factory | Sucked down chute 2850 | -5/Factory | Entered Waste 2850 | -5/Waste | The area was eerily silent 2866 | -5/Waste | Discovered new exit (range 12) 2889 | -5/Waste | Entered Factory 2909 | -5/Factory | Loaded intel: 8 recycling unit locations 2952 | -5/Factory | Discovered new exit (range 16) 2955 | -5/Factory | Identified exit to Upper Caves 3080 | -5/Factory | Discovered new exit (range 12) 3162 | -5/Factory | Learned location of Warlord (-4) 3199 | -5/Factory | Learned 8 Research zone layouts 3242 | -5/Factory | Loaded intel: 6 repair station locations 3247 | -5/Factory | Learned Research stockpile data 3283 | -5/Factory | Identified exit to Factory 3316 | -5/Factory | Loaded intel: 26 terminal locations 3323 | -5/Factory | Entered Extension 3324 | -5/Extension | Identified exit to Cetus 3368 | -5/Extension | Rescued a captive Derelict 3480 | -5/Extension | Spotted B-75 Beast 3775 | -5/Extension | Spotted B-75 Beast 3789 | -5/Extension | Destroyed B-75 Beast 3816 | -5/Extension | Destroyed B-75 Beast 3837 | -5/Extension | Lost 6 allies 3877 | -5/Extension | Rescued a captive Derelict 3878 | -5/Extension | Rescued a captive Derelict 3924 | -5/Extension | Rescued a captive Derelict 3925 | -5/Extension | Loaded intel: 2 recycling unit locations 4061 | -5/Extension | Lost 3 allies 4186 | -5/Extension | Rescued A7 4242 | -5/Extension | Discovered exit to Factory (range 10) 4260 | -5/Extension | Entered Cetus 4260 | -5/Cetus | Accompanied by 1 ally (A7) 4261 | -5/Cetus | Attached CPS modules to A7. 4265 | -5/Cetus | Acquired a Cetus Manufacturing Module code from A7 4266 | -5/Cetus | Spotted Cetus Guard 4266 | -5/Cetus | Spotted Cetus Guard 4266 | -5/Cetus | Spotted Cetus Guard 4266 | -5/Cetus | Spotted Cetus Guard 4280 | -5/Cetus | Allies destroyed Cetus Guard 4364 | -5/Cetus | Extracted ID and sensor layout for unrecognized location from A7's data core 4369 | -5/Cetus | Found Prototype Protection 4387 | -5/Cetus | Cetus Manufacturing Module disabled 4394 | -5/Cetus | Discovered new exit (range 22) 4400 | -5/Cetus | Entered Archives 4403 | -5/Archives | Identified Med. Regenerative Plating 4417 | -5/Archives | Lost 4 parts (1n3w) 4438 | -5/Archives | Discovered new exit (range 13) 4441 | -5/Archives | Entered Hub_04(d) 4491 | -5/Hub_04(d) | Discovered exit to Factory (range 19) 4514 | -5/Hub_04(d) | Discovered exit to Factory (range 11) 4549 | -5/Hub_04(d) | Learned Testing stockpile data 4617 | -5/Hub_04(d) | Learned Factory stockpile data 4637 | -5/Hub_04(d) | Learned Research emergency access door positions 4649 | -5/Hub_04(d) | Learned Armory fabricator intel 4652 | -5/Hub_04(d) | Network Hub disabled 4653 | -5/Hub_04(d) | Learned location of 1 exit from Extension 4659 | -5/Hub_04(d) | Spotted Lightning 4670 | -5/Hub_04(d) | Learned 4 Factory zone layouts 4677 | -5/Hub_04(d) | Network Hub disabled 4681 | -5/Hub_04(d) | Spotted Lightning 4682 | -5/Hub_04(d) | Spotted Lightning 4682 | -5/Hub_04(d) | Spotted Lightning 4682 | -5/Hub_04(d) | Entered Factory 4682 | -4/Factory | Evolved 2 slots: Propulsion x1, Utility x1 4683 | -4/Factory | Identified exit to Upper Caves 4799 | -4/Factory | Repaired Imp. Cesium-ion Thruster 4871 | -4/Factory | Repaired Imp. Cesium-ion Thruster 4942 | -4/Factory | Repaired Imp. Cesium-ion Thruster 4955 | -4/Factory | Identified exit to Armory 5011 | -4/Factory | Loaded intel: 8 recycling unit locations 5111 | -4/Factory | Central database locked down 5156 | -4/Factory | Learned location of 1 exit from Proximity Caves 5225 | -4/Factory | Learned Testing stockpile data 5250 | -4/Factory | Discovered new exit (range 16) 5275 | -4/Factory | Build established: Hacker-Sprinter 5286 | -4/Factory | Loaded intel: 87 trap records 5289 | -4/Factory | Fabricated Spectral Analyzer (x1) 5324 | -4/Factory | Fabricated Exp. ECM Suite? 5338 | -4/Factory | Learned Armory fabricator intel 5379 | -4/Factory | Learned location of 1 exit from Upper Caves 5406 | -4/Factory | Fabricated Com. Particle Reactor? 5412 | -4/Factory | Learned Armory garrison access intel 5434 | -4/Factory | Learned Research security intel 5467 | -4/Factory | Learned 8 Research zone layouts 5479 | -4/Factory | Local machine network offline 5579 | -4/Factory | Entered Armory 5580 | -4/Armory | Loaded intel: 8 fabricator locations 5612 | -4/Armory | Unchained authorized (6S-H0T) 5727 | -4/Armory | Discovered new exit (range 5) 5730 | -4/Armory | Entered Lab 5735 | -4/Lab | Discovered new exit (range 9) 5737 | -4/Lab | Hidden lab's door opened automatically 5737 | -4/Lab | Sensor layout match revealed 5738 | -4/Lab | Gained access to the hidden lab's interior 5752 | -4/Lab | Found Alien Artifact 5752 | -4/Lab | Identified Integrated Reactor 5752 | -4/Lab | Installed Integrated Reactor, increased core energy generation (+10) 5759 | -4/Lab | Found Alien Artifact 5766 | -4/Lab | Found Alien Artifact 5803 | -4/Lab | Found Prototype Hackware 5803 | -4/Lab | Identified Quantum Router 5816 | -4/Lab | Found Prototype Protection 5816 | -4/Lab | Identified Exp. Powered Armor 5819 | -4/Lab | Found Prototype Energy Cannon 5819 | -4/Lab | Identified Potential Cannon 5825 | -4/Lab | Found Prototype Special Weapon 5825 | -4/Lab | Identified Gui. Remote Datajack 5840 | -4/Lab | Entered Research 5840 | -3/Research | Evolved 2 slots: Propulsion x1, Utility x1 5841 | -3/Research | Identified exit to Testing 5978 | -3/Research | Identified Core Regenerator 5981 | -3/Research | Loaded intel: 5 recycling unit locations 6109 | -3/Research | Discovered exit to Testing (range 17) 6111 | -3/Research | Entered Testing 6117 | -3/Testing | Found Prototype Ballistic Cannon 6117 | -3/Testing | Identified Omega Cannon 6128 | -3/Testing | Found Prototype Ballistic Cannon 6128 | -3/Testing | Identified Perforator 6142 | -3/Testing | Found Prototype Hackware 6142 | -3/Testing | Identified System Mapper 6176 | -3/Testing | Repaired Power Sword 6182 | -3/Testing | Identified Transdimensional Reconstructor 6182 | -3/Testing | Central database locked down 6291 | -3/Testing | Unchained authorized (6S-H0T) 6321 | -3/Testing | Repaired Imp. Cesium-ion Thruster 6384 | -3/Testing | Discovered new exit (range 17) 6389 | -3/Testing | Entered Research 6389 | -2/Research | Evolved 2 slots: Power x1, Utility x1 6440 | -2/Research | Spotted B-90 Cyclops 6466 | -2/Research | Identified exit to Quarantine 6509 | -2/Research | Spotted B-90 Cyclops 6522 | -2/Research | Entered Quarantine 6529 | -2/Quarantine | Found Alien Slashing Weapon 6529 | -2/Quarantine | Identified Sigix Broadsword 6597 | -2/Quarantine | Discovered new exit (range 5) 6605 | -2/Quarantine | Cryocooling Duct disabled 6608 | -2/Quarantine | Cryocooling Duct disabled 6620 | -2/Quarantine | Ambient heat levels rising (+20) 6620 | -2/Quarantine | Non-combat units ordered to evacuate 6623 | -2/Quarantine | Ambient heat levels rising (+20) 6623 | -2/Quarantine | Combat units ordered to evacuate 6700 | -2/Quarantine | Found Alien Artifact 6719 | -2/Quarantine | Spotted Alpha 7 6723 | -2/Quarantine | Quarantine Guard activated 6735 | -2/Quarantine | Found Alien Artifact 6736 | -2/Quarantine | Identified Subatomic Replicator 6736 | -2/Quarantine | Used Subatomic Replicator to create Alien Artifact 6759 | -2/Quarantine | Found Prototype Device 6759 | -2/Quarantine | Identified Exp. Transmission Jammer 6773 | -2/Quarantine | Found Alien Artifact 6809 | -2/Quarantine | Repaired Cld. Nuclear Pulse Thruster 6814 | -2/Quarantine | Spotted Quarantine Guard 6824 | -2/Quarantine | Spotted Quarantine Guard 6825 | -2/Quarantine | Spotted Quarantine Guard 6826 | -2/Quarantine | Identified Supercharged TR 6826 | -2/Quarantine | Identified Dimensional Node Initializer 6826 | -2/Quarantine | Identified Core Reset Matrix 6833 | -2/Quarantine | Spotted Quarantine Guard 6835 | -2/Quarantine | Repaired Com. Particle Reactor? 6835 | -2/Quarantine | Spotted Quarantine Guard 6871 | -2/Quarantine | Spotted Quarantine Guard 6893 | -2/Quarantine | Spotted Quarantine Guard 6900 | -2/Quarantine | Spotted Quarantine Guard 6919 | -2/Quarantine | Spotted Fortress 6925 | -2/Quarantine | Spotted Quarantine Guard 6928 | -2/Quarantine | Spotted Quarantine Guard 7023 | -2/Quarantine | Discovered new exit (range 6) 7023 | -2/Quarantine | Discovered new exit (range 5) 7025 | -2/Quarantine | Entered Protoforge 7036 | -2/Protoforge | Spotted Hotshot 7036 | -2/Protoforge | Spotted Hotshot 7109 | -2/Protoforge | Learned 12 Access zone layouts 7133 | -2/Protoforge | Superfortress began startup sequence 7138 | -2/Protoforge | Spotted AP7-3 7138 | -2/Protoforge | Spotted Overlord 7138 | -2/Protoforge | Spotted AP7-3 7140 | -2/Protoforge | Learned location of 3 exits from Research 7142 | -2/Protoforge | Spotted Decapitator 7142 | -2/Protoforge | Spotted Decapitator 7149 | -2/Protoforge | Spotted EXE-6 7149 | -2/Protoforge | Spotted EXE-6 7158 | -2/Protoforge | UFD initiated attack on Protoforge (Readiness: Maximal) 7158 | -2/Protoforge | Loaded intel: 3 recycling unit locations 7162 | -2/Protoforge | Identified exit to Access 7176 | -2/Protoforge | Learned location of 1 exit from Research 7177 | -2/Protoforge | Scraphulk reinforcements arrived 7180 | -2/Protoforge | Scraphulk reinforcements arrived 7183 | -2/Protoforge | Learned Research fabricator intel 7184 | -2/Protoforge | Learned Research emergency access door positions 7184 | -2/Protoforge | Found Prototype Device 7184 | -2/Protoforge | Identified Exp. Kinecellerator 7188 | -2/Protoforge | Learned Research repair station intel 7189 | -2/Protoforge | Found Prototype Processor 7189 | -2/Protoforge | Identified Exp. Core Analyzer 7194 | -2/Protoforge | Optimus greeted in Protoforge 7202 | -2/Protoforge | Learned location of Quarantine (-2) 7233 | -2/Protoforge | Found Prototype Processor 7233 | -2/Protoforge | Identified Exp. Target Analyzer 7237 | -2/Protoforge | Spotted EXE-6 7241 | -2/Protoforge | Spotted EXE-6 7242 | -2/Protoforge | Found Prototype Device 7242 | -2/Protoforge | Identified Exp. Active Sensor Suite 7244 | -2/Protoforge | Found Prototype Device 7244 | -2/Protoforge | Identified Adv. Kinecellerator 7247 | -2/Protoforge | Found Prototype Device 7247 | -2/Protoforge | Identified Exp. Remote Shield 7249 | -2/Protoforge | Found Prototype Device 7249 | -2/Protoforge | Identified Exp. EM Shield 7253 | -2/Protoforge | Found Prototype Processor 7253 | -2/Protoforge | Identified Exp. Targeting Computer 7268 | -2/Protoforge | Initialized slip node 7277 | -2/Protoforge | Lost 5 allies 7294 | -2/Protoforge | Spotted Hotshot 7294 | -2/Protoforge | Spotted Hotshot 7305 | -2/Protoforge | Warped through subspace to slip node 7306 | -2/Protoforge | Optimus attacked Superfortress 7308 | -2/Protoforge | Found Prototype Ballistic Gun 7308 | -2/Protoforge | Identified Cep. XC Strikerail 7311 | -2/Protoforge | Spotted Immortal 7327 | -2/Protoforge | Spotted Executioner 7327 | -2/Protoforge | Spotted Immortal 7332 | -2/Protoforge | Found Prototype Piercing Weapon 7332 | -2/Protoforge | Identified Exp. Jetlance 7344 | -2/Protoforge | Found Prototype Power Core 7344 | -2/Protoforge | Identified Cep. Zero-point Core 7346 | -2/Protoforge | Found Cep. Zero-point Core 7349 | -2/Protoforge | Found Cep. Zero-point Core 7354 | -2/Protoforge | UFD reported confirmed Drillbomb installation 7354 | -2/Protoforge | Found Prototype Device 7354 | -2/Protoforge | Identified Cep. Antimissile System 7359 | -2/Protoforge | Found Prototype Device 7359 | -2/Protoforge | Identified Exp. Cloaking Device 7363 | -2/Protoforge | Found Prototype Device 7363 | -2/Protoforge | Identified Exp. Force Field 7365 | -2/Protoforge | Found Prototype Energy Cannon 7365 | -2/Protoforge | Identified Cep. Plasma Driver 7368 | -2/Protoforge | Lost 14 allies 7424 | -2/Protoforge | UFD reported confirmed Drillbomb installation 7473 | -2/Protoforge | Spotted Striker 7485 | -2/Protoforge | Allies destroyed 02F02-K 7493 | -2/Protoforge | Allies destroyed Striker 7554 | -2/Protoforge | Spotted AP7-3 7561 | -2/Protoforge | Destroyed AP7-3 7608 | -2/Protoforge | Spotted Hotshot 7608 | -2/Protoforge | Spotted Hotshot 7609 | -2/Protoforge | Spotted Hotshot 7637 | -2/Protoforge | Used Core Reset Matrix 7641 | -2/Protoforge | Sensed 2 artifacts in vicinity 7643 | -2/Protoforge | Forge Plexus network access discovered 7660 | -2/Protoforge | Build established: Scavenger-Ninja 7702 | -2/Protoforge | Spotted Striker 7717 | -2/Protoforge | Spotted Striker 7745 | -2/Protoforge | Found Unknown Device 7745 | -2/Protoforge | Identified Scrap Suit 7762 | -2/Protoforge | Spotted Executioner 7783 | -2/Protoforge | Spotted Striker 7817 | -2/Protoforge | Spotted Executioner 7820 | -2/Protoforge | Spotted Striker 7846 | -2/Protoforge | Found Exp. Core Analyzer 8023 | -2/Protoforge | Destroyed Hotshot 8041 | -2/Protoforge | Destroyed Hotshot 8053 | -2/Protoforge | Found Cep. Concussive Dispersal Blaster 8055 | -2/Protoforge | Found Cep. Concussive Dispersal Blaster 8059 | -2/Protoforge | Found Faulty Cep. XC Strikerail 8072 | -2/Protoforge | Spotted Striker 8099 | -2/Protoforge | Spotted Striker 8103 | -2/Protoforge | Destroyed Striker 8196 | -2/Protoforge | Found Crosscalibrator 8198 | -2/Protoforge | Spotted Immortal 8377 | -2/Protoforge | Found Cep. Weapon Articulator 8390 | -2/Protoforge | Spotted V268-o 8390 | -2/Protoforge | Spotted V567-k 8401 | -2/Protoforge | Spotted Decapitator 8401 | -2/Protoforge | Spotted Decapitator 8401 | -2/Protoforge | Spotted Decapitator 8423 | -2/Protoforge | Spotted V774-o 8433 | -2/Protoforge | Spotted Immortal 8485 | -2/Protoforge | Destroyed Immortal 8499 | -2/Protoforge | Destroyed V774-o 8507 | -2/Protoforge | Found Unknown Protection 8507 | -2/Protoforge | Identified Imp. Powered Armor 8517 | -2/Protoforge | Spotted V573-c 8607 | -2/Protoforge | Destroyed V573-c 8613 | -2/Protoforge | Found Cep. Hypertargeting System 8666 | -2/Protoforge | Build established: Scavenger-Scout 8717 | -2/Protoforge | Additional patrols dispatched to research labs 8720 | -2/Protoforge | Found Cep. Nanofilaments [Tensile] 8720 | -2/Protoforge | Installed Cep. Nanofilaments [Tensile], 3 resistances modified: KI +20%, TH -10%, I +20% 8740 | -2/Protoforge | UFD reported confirmed Drillbomb installation 8750 | -2/Protoforge | Spotted AP7-3 8750 | -2/Protoforge | Spotted AP7-3 8870 | -2/Protoforge | Destroyed AP7-3 8891 | -2/Protoforge | Found Cep. Fieldthrust Drive 8895 | -2/Protoforge | Found Faulty Cep. Fieldthrust Drive 8955 | -2/Protoforge | Destroyed AP7-3 8974 | -2/Protoforge | Found Cep. Antigrav Storage Unit 8976 | -2/Protoforge | Found Cep. NT7 Matterbank 8981 | -2/Protoforge | Found Cep. Matter Streamer 9015 | -2/Protoforge | Found Transdimensional Reconstructor 9045 | -2/Protoforge | Destroyed Decapitator 9045 | -2/Protoforge | Destroyed Decapitator 9048 | -2/Protoforge | Destroyed Decapitator 9091 | -2/Protoforge | Found Faulty Cep. Combat Aerolev Unit 9093 | -2/Protoforge | Found Faulty Cep. Gyrokinetic System 9100 | -2/Protoforge | Found Cep. Combat Aerolev Unit 9111 | -2/Protoforge | Found Faulty Cep. Gyrokinetic System 9160 | -2/Protoforge | Spotted V337-t 9167 | -2/Protoforge | Destroyed V337-t 9266 | -2/Protoforge | Found Prototype Device 9266 | -2/Protoforge | Identified Thermal Barrier 9326 | -2/Protoforge | Found Prototype Device 9326 | -2/Protoforge | Identified Exp. Shield Generator 9328 | -2/Protoforge | Found Unknown Protection 9328 | -2/Protoforge | Identified Adv. Powered Armor 9374 | -2/Protoforge | Found Exp. System Purifier 9393 | -2/Protoforge | Found Prototype Device 9393 | -2/Protoforge | Identified Exp. Weapon Cycler 9424 | -2/Protoforge | Found Prototype Processor 9424 | -2/Protoforge | Identified Exp. Armor Integrity Analyzer 9466 | -2/Protoforge | Spotted V236-p 9466 | -2/Protoforge | Spotted V763-f 9466 | -2/Protoforge | Spotted V921-p 9482 | -2/Protoforge | Spotted Decapitator 9482 | -2/Protoforge | Spotted Decapitator 9482 | -2/Protoforge | Spotted Decapitator 9482 | -2/Protoforge | Spotted Decapitator 9485 | -2/Protoforge | Destroyed Decapitator 9485 | -2/Protoforge | Destroyed Decapitator 9494 | -2/Protoforge | Destroyed Decapitator 9568 | -2/Protoforge | Destroyed Immortal 9625 | -2/Protoforge | Found Cep. Network Penetrator 9631 | -2/Protoforge | Found Prototype Ballistic Gun 9631 | -2/Protoforge | Identified Multirail 9634 | -2/Protoforge | Found Prototype Launcher 9634 | -2/Protoforge | Identified Adv. Micro-nuke Launcher 9658 | -2/Protoforge | Scanned by Researcher 9677 | -2/Protoforge | Found Cep. Beam Splitter 9680 | -2/Protoforge | Found Cep. Hardlight Director 9711 | -2/Protoforge | Spotted V144-g 9733 | -2/Protoforge | Found Exp. Force Field 9738 | -2/Protoforge | Found Faulty Exp. Force Field 9806 | -2/Protoforge | Found Cep. Helical Railcannon 9811 | -2/Protoforge | Found Cep. Helical Railcannon 9813 | -2/Protoforge | Found Cep. Helical Railcannon 9816 | -2/Protoforge | Found Cep. Heavy Railcannon 9834 | -2/Protoforge | Found Cep. Disintegration Ray 9881 | -2/Protoforge | Found Cep. Thermoelectric Network 9883 | -2/Protoforge | Found Faulty Cep. Cloak Mesh 10010 | -2/Protoforge | Found Faulty Cep. Cloak Mesh 10069 | -2/Protoforge | Found Exp. Kinecellerator 10116 | -2/Protoforge | Found Cep. NT7 Matterbank 10185 | -2/Protoforge | Found Exp. System Purifier 10186 | -2/Protoforge | UFD reported confirmed Drillbomb installation 10258 | -2/Protoforge | UFD reported confirmed Drillbomb installation 10290 | -2/Protoforge | Discovered exit to Access (range 9) 10304 | -2/Protoforge | Spotted B-90 Cyclops 10362 | -2/Protoforge | UFD reported confirmed Drillbomb installation 10388 | -2/Protoforge | Spotted Striker 10424 | -2/Protoforge | Spotted Striker 10428 | -2/Protoforge | Spotted Striker 10429 | -2/Protoforge | Spotted Striker 10457 | -2/Protoforge | Build established: Hacker-Scout 10493 | -2/Protoforge | Lost 6 allies 10504 | -2/Protoforge | Spotted Striker 10622 | -2/Protoforge | Fabricated Adv. Focal Shield? 10631 | -2/Protoforge | Central database locked down 10645 | -2/Protoforge | Spotted Executioner 10702 | -2/Protoforge | Spotted Executioner 10718 | -2/Protoforge | Spotted Executioner 10718 | -2/Protoforge | Spotted Striker 10772 | -2/Protoforge | Destroyed Executioner 10863 | -2/Protoforge | Spotted Executioner 10891 | -2/Protoforge | Spotted Executioner 10892 | -2/Protoforge | Spotted Executioner 11016 | -2/Protoforge | Spotted Striker 11034 | -2/Protoforge | Spotted Striker 11064 | -2/Protoforge | Entered Access 11064 | -1/Access | Evolved 2 slots: Utility x2 11096 | -1/Access | Spotted B-99 Colossus 11111 | -1/Access | Identified exit to Command 11174 | -1/Access | Entered Command 11223 | -1/Command | Spotted M Guard 11223 | -1/Command | Spotted M Guard 11223 | -1/Command | Spotted Combat Programmer 11232 | -1/Command | Destroyed Combat Programmer 11233 | -1/Command | Spotted Combat Programmer 11240 | -1/Command | Destroyed Combat Programmer 11244 | -1/Command | Destroyed M Guard 11252 | -1/Command | Destroyed M Guard 11252 | -1/Command | All MAIN.C guards destroyed 11282 | -1/Command | Met MAIN.C 11282 | -1/Command | 0b10 Conduit disabled 11372 | -1/Command | Destroyed MAIN.C Shell 11375 | -1/Command | MAIN.C activated Command garrisons 11472 | -1/Command | Destroyed MAIN.C 11479 | -1/Command | Discovered new exit (range 47) 11479 | -1/Command | Discovered new exit (range 74) 11479 | -1/Command | Extracted map data and part IDs from MAIN.C's data core 11661 | -1/Command | Build established: Scavenger-Scout 11930 | -1/Command | Spotted Striker 11938 | -1/Command | Destroyed Striker 12079 | -1/Command | Build established: Scavenger-Ninja 12200 | -1/Command | Found Enh. Gamma Bomb Array 12325 | -1/Command | Found Exp. Focal Shield 12326 | -1/Command | Found Exp. Armor Integrity Analyzer 12397 | -1/Command | Found Null Cannon 12430 | -1/Command | Warped through subspace to slip node 12430 | -1/Command | Discovered new exit (range 5) 12434 | -1/Command | Identified exit to Access_0 12434 | -1/Command | Entered Access_0 12435 | -1/Access_0 | Sensed 2 artifacts in vicinity 12436 | -1/Access_0 | Met Architect 12442 | -1/Access_0 | Architect warped through subspace 12471 | -1/Access_0 | Destroyed A8 12476 | -1/Access_0 | Architect warped through subspace 12574 | -1/Access_0 | Architect warped through subspace 12582 | -1/Access_0 | Lost 3 parts (1n2w) 12602 | -1/Access_0 | A6 warped into view 12616 | -1/Access_0 | Destroyed A6 12624 | -1/Access_0 | Architect warped through subspace 12653 | -1/Access_0 | Subspace Access Node disabled 12663 | -1/Access_0 | Build established: Scavenger-Scout 12675 | -1/Access_0 | Lost 4 parts (1p2n1u) 12678 | -1/Access_0 | Found Sigix Broadsword 12697 | -1/Access_0 | Found Hpw. Transdimensional Reconstructor 12715 | -1/Access_0 | Architect warped through subspace 12761 | -1/Access_0 | Architect warped through subspace 12767 | -1/Access_0 | A5 warped into view 12777 | -1/Access_0 | Destroyed A5 12794 | -1/Access_0 | Architect warped through subspace 12848 | -1/Access_0 | Architect warped through subspace 12889 | -1/Access_0 | A4 warped into view 12927 | -1/Access_0 | Architect warped through subspace 12960 | -1/Access_0 | Destroyed A4 12967 | -1/Access_0 | Core integrity fell below 50% 13042 | -1/Access_0 | Found Sigix Corpse 13043 | -1/Access_0 | Lost 14 parts (3p3n2u6w) 13055 | -1/Access_0 | Used Core Regenerator, restored core integrity (+400) 13073 | -1/Access_0 | Core integrity fell below 20% 13076 | -1/Access_0 | Warped through subspace to slip node 13076 | -1/Access_0 | Discovered new exit (range 8) 13080 | -1/Access_0 | Identified exit to Surface 13080 | *** | Heading to fleet! Last Messages --------------- 13071_ Penetrated by HV Slug. 13071_ HV Slug penetrates Wall. 13071_ Cep. Zero-point Core destroyed. 13071_ Dropped Cep. Antigrav Storage Unit. 13072_ Quantum Shear penetrates Machine. 13072_ Exp. EM Shield destroyed. 13072_ Acquired 5 matter. 13072_ Exp. Core Analyzer destroyed. 13073_ HV Slug penetrates Machine. 13074_ Quantum Shear penetrates Machine. 13075_ Penetrated by HV Slug. 13075_ Acquired 3 matter. 13076_ Warped through subspace, drawn to slip node. 13076_ EXIT=FOUND 13076_ A0_RES: I have more important things to do than play hide-and-seek. Deal with this piece of junk if it returns. 13080_ System corrupted: Matter fused (-5). 13080_ EXIT=IDENTIFIED: SURFACE Map ----- +----------------------------------------------------+ | | | | | | | | | | | | | | | | | | | | | | | | | | | | | | | | | ?????????????????????????????????????????????????? | | ?????????????????????????????????????????????????? | | ?????????????????????????????????????????????????? | | ?????????????????????????????????????????????????? | | ?????????????????????????????????????????????????? | | ?????????????????????????????????????????????????? | | ????????????????????????###??????????????????????? | | ???????????????????????## ##?????????????????????? | | ???????????????????????# #?????????????????????? | | ???????????????????????# @ #?????????????????????? | | ??????????????????????## #?????????????????????? | | ??????????????????????# #?????????????????????? | | ??????????????????????# ##?????????????????????? | | ??????????????????????## #?????????????????????? | | ??????????????????????# #?????????????????????? | | ??????????????????????# ##?????????????????????? | | ??????????????????????# < #?????????????????????? | | ??????????????????????# ##?????????????????????? | | ??????????????????????## #??????????????????????? | | ???????????????????????####??????????????????????? | | ?????????????????????????????????????????????????? | | ?????????????????????????????????????????????????? | | ?????????????????????????????????????????????????? | | ?????????????????????????????????????????????????? | | ?????????????????????????????????????????????????? | | ?????????????????????????????????????????????????? | | ?????????????????????????????????????????????????? | | ?????????????????????????????????????????????????? | | ?????????????????????????????????????????????????? | | ?????????????????????????????????????????????????? | | ?????????????????????????????????????????????????? | | ?????????????????????????????????????????????????? | | ?????????????????????????????????????????????????? | | ?????????????????????????????????????????????????? | +----------------------------------------------------+ Best States ------------- Heat Dissipation 113 Energy Generation 85 Energy Capacity 1640 Matter Stores 300 Matter Capacity 300 Sight Range 24 Robot Scan Range 20 Terrain Scan Density 10 ECM Strength 3 Jamming Range 22 Cloak Strength 9 Additional Mass Support 16 Corruption Block 19 Armor Coverage 400 Resistance: KI 50 Resistance: TH 65 Resistance: EM 75 Resistance: I 20 Point Defense Rating 480 Evasion (%) 79 Targeting Accuracy 30 Core Analysis 8 Armor Integrity Analysis 50 Kinecelleration 66 Offensive Hacking 50 Defensive Hacking 25 Authchip Count 3 Item Schematics ----------------- Gravity Neutralizer | -2/Protoforge | Archive Com. Tesla Bomb Launcher | -2/Protoforge | Archive Hds. Centrium Leg | -2/Protoforge | Archive Mni. Smartbomb Launcher | -2/Protoforge | Archive Hvy. Wave Gun | -2/Protoforge | Archive Exp. Core Shielding | -2/Protoforge | Archive Hvy. Gatling Laser | -2/Protoforge | Archive Exp. Hacking Suite | -2/Protoforge | Archive Cld. Phase Cannon | -2/Protoforge | Archive Enh. Force Rifle | -2/Protoforge | Archive Cld. Linear Gravjet | -2/Protoforge | Archive Nanosword | -2/Protoforge | Archive Imp. Matter Neutralizer | -2/Protoforge | Archive Exp. System Shield | -2/Protoforge | Archive Exp. Transmission Jammer | -2/Protoforge | Archive Plasma Sword | -2/Protoforge | Archive Exp. Target Analyzer | -2/Protoforge | Archive Adv. EM Shield | -2/Protoforge | Archive Lrn. Phase Cannon | -2/Protoforge | Archive Adv. Variable Charge Gun | -2/Protoforge | Archive Exp. Q-thruster | -2/Protoforge | Archive Adv. Focal Shield | -2/Protoforge | Hacked Robot Schematics ------------------ K-01 Serf | -2/Protoforge | Archive B-74 Champion | -2/Protoforge | Archive R-10 Processor | -2/Protoforge | Archive Fabricated ------------ Imp. Salvage Targeting Computer | x2 | -6/Factory | Authchip Spectral Analyzer | x1 | -4/Factory | Authchip Exp. ECM Suite | x1 | -4/Factory | Authchip Com. Particle Reactor | x1 | -4/Factory Adv. Focal Shield | x2 | -2/Protoforge Repaired ---------- Imp. Cesium-ion Thruster | 11% | -4/Factory Imp. Cesium-ion Thruster | 45% | -4/Factory Imp. Cesium-ion Thruster | 61% | -4/Factory Power Sword | 26% | -3/Testing Imp. Cesium-ion Thruster | 1% | -3/Testing Cld. Nuclear Pulse Thruster | 32% | -2/Quarantine Com. Particle Reactor | 37% | -2/Quarantine Studied --------- None Alien Tech Used ----------------- Integrated Reactor Sigix Broadsword Subatomic Replicator Dimensional Node Initializer Supercharged TR Core Reset Matrix Concept Nanofilaments [Tensile] Transdimensional Reconstructor Core Regenerator High-powered Transdimensional Reconstructor Achievements -------------- I Have Friends Everywhere Challenges ------------ None Game ------ Seed SeismicDerelictFlightbrick Manual? 0 Play Time 07:18:40 Cumulative 673.6 hours Start 2025.11.16 @ 17:29:04 End 2025.11.17 @ 12:15:22 Sessions 5 Manual Loads 0 Difficulty Rogue Special Mode None Game No. 289 Rogue 289 Adventurer 0 Explorer 0 Win Type 2 Total 66 Types 34/4/11/4/6/1/0/3/0/3 Lore% 96 Gallery% 89 Achievement% 78 Wizard Run 0 Options --------- Layout 1 ASCII 0 Keyboard 0 Movement Numpad Keybinds 0 Fullscreen 1 Font 24/Smallcaps Map View 50x35 Zoom Use 0% Tactical HUD 1 Map Filters NONE Filters NONE Steam 1 RUN: c528a113-07e1-4fe1-8686-8bae3bcef83a